{"text_format":"1","workbook":"xlsx","n_sheets":8,"sheets":["القوائم","الرئيسية","مثال2","الاستئذانات","التذاكر","قائمة المباريات","Sheet2","القائمة_الرئيسية"],"not_rendered":{"charts":0,"images":0,"macros":1,"external_links":0,"defined_names":7,"comments":2,"pivot_tables":0},"unopened":[],"bounds":{"document_bytes":16777216,"sheet_cells":100000,"rows_first":2000,"rows_last":500,"rows_between":2000,"halvings":0,"cell_chars":16384,"cell_head_chars":4096},"cells_cut":0,"cells_raw":0,"read":"whole","date_system":"1900"}

{"sheet":"القوائم","index":0,"n_rows":13,"n_cols":5,"rows_kept":13,"cut":false,"hidden":false,"merged":[]}
["اللعبة","الفئة","الصفة","فصيلة الدم","المهنة"]
["كرة القدم","فريق أول","لاعب","A+","طالب"]
["كرة اليد","شباب تحت 19","المدرب","A-","موظف"]
["كرة الطائرة","ناشئين تحت 17","مساعد المدرب","AB+","متقاعد"]
["كرة السلة","براعم تحت 15","مدرب حراس","AB-","لاعب محترف"]
["كرة الطاولة","براعم تحت 13","معد بدني","B+","متسبب"]
["العاب القوى","شباب","أخصائي علاج","B-"]
["كمال الاجسام","ناشئين ","طبيب","O+"]
["التايكوندو","ناشئين أ",null,"O-"]
["السباحة","ناشئين ب"]
["التنس","ناشئين ج"]
[null,"أشبال"]
[null,"براعم"]

{"sheet":"الرئيسية","index":1,"n_rows":11,"n_cols":23,"rows_kept":11,"cut":false,"hidden":false,"merged":[]}
[]
[]
[]
[]
[]
[]
[]
[]
[]
[null,null,"الرقم","رقم البطاقة","الهوية","الاسم","الإسم بالإنجليزي","تاريخ الميلاد","فصيلة الدم","الطول","الوزن","المدينة","الحي","الجوال","جوال ولي الأمر","اللعبة","الفئة","الصفة","المدرسة / العمل","المهنة","رقم الفانيلة","الحالة الصحية","ملاحظات"]
[null,null,{"$f":"ROWS($D$11:D11)","v":1},362585,1234567890,"الإسم 1","Name 1","2004-04-05","A-",180,60,"الرياض","المربع",565656565,545454545,"كرة القدم","فريق أول","لاعب","مدرسة العلا","طالب",15,"سليم"]

{"sheet":"مثال2","index":2,"n_rows":5,"n_cols":8,"rows_kept":5,"cut":false,"hidden":true,"merged":[]}
[]
[]
[]
[null,"م","الاسم","الجـــنس","الجنســــية","تاريخ الميلاد","محل الميلاد","الراتب"]
[null,1,"خبور10"]

{"sheet":"الاستئذانات","index":3,"n_rows":48,"n_cols":4,"rows_kept":48,"cut":false,"hidden":false,"merged":[[10,1,11,3],[20,5,20,7],[45,2,45,3],[47,2,47,3]]}
[]
[]
[]
[]
[null,"التاريخ","2019-01-19"]
[]
[]
[]
[null,"السادة /","مدرسة صقليه المتوسطة","المحترمين"]
[null,null,"السلام عليكم ورحمة الله وبركاته"]
[null,"نهديكم اطيب تحية وبعد... نأمل من سعادتكم السماح للطالب أدناه بالتغيب عن المدرسة  يوم الأحد الموافق 1440/05/14 هـ حيث تم اختياره ضمن فريق كرة القدم لفئة البراعم بالنادي للمشاركة في مباراة ضد فريق نادي الخويلدية ضمن منافسات التصفيات النهائية لبطولة كرة القدم."]
[]
[]
[null,"م","   الإسم ","الصفة    "]
[null,{"$f":"IFERROR(VLOOKUP(ROW()-14,Sheet2!$A$6:$G$98,1,0),\"\")","v":1},{"$f":"IFERROR(VLOOKUP(ROW()-14,Sheet2!$A$6:$G$98,4,0),\"\")","v":"لاعب 71"},{"$f":"IFERROR(VLOOKUP(ROW()-14,Sheet2!$A$6:$G$98,5,0),\"\")","v":"لاعب"}]
[null,{"$f":"IFERROR(VLOOKUP(ROW()-14,Sheet2!$A$6:$G$98,1,0),\"\")","v":2},{"$f":"IFERROR(VLOOKUP(ROW()-14,Sheet2!$A$6:$G$98,4,0),\"\")","v":"لاعب 76"},{"$f":"IFERROR(VLOOKUP(ROW()-14,Sheet2!$A$6:$G$98,5,0),\"\")","v":"لاعب"}]
[null,{"$f":"IFERROR(VLOOKUP(ROW()-14,Sheet2!$A$6:$G$98,1,0),\"\")","v":3},{"$f":"IFERROR(VLOOKUP(ROW()-14,Sheet2!$A$6:$G$98,4,0),\"\")","v":"لاعب 85"},{"$f":"IFERROR(VLOOKUP(ROW()-14,Sheet2!$A$6:$G$98,5,0),\"\")","v":"لاعب"}]
[null,{"$f":"IFERROR(VLOOKUP(ROW()-14,Sheet2!$A$6:$G$98,1,0),\"\")","v":""},{"$f":"IFERROR(VLOOKUP(ROW()-14,Sheet2!$A$6:$G$98,4,0),\"\")","v":""},{"$f":"IFERROR(VLOOKUP(ROW()-14,Sheet2!$A$6:$G$98,5,0),\"\")","v":""}]
[null,{"$f":"IFERROR(VLOOKUP(ROW()-14,Sheet2!$A$6:$G$98,1,0),\"\")","v":""},{"$f":"IFERROR(VLOOKUP(ROW()-14,Sheet2!$A$6:$G$98,4,0),\"\")","v":""},{"$f":"IFERROR(VLOOKUP(ROW()-14,Sheet2!$A$6:$G$98,5,0),\"\")","v":""}]
[null,{"$f":"IFERROR(VLOOKUP(ROW()-14,Sheet2!$A$6:$G$98,1,0),\"\")","v":""},{"$f":"IFERROR(VLOOKUP(ROW()-14,Sheet2!$A$6:$G$98,4,0),\"\")","v":""},{"$f":"IFERROR(VLOOKUP(ROW()-14,Sheet2!$A$6:$G$98,5,0),\"\")","v":""}]
[null,{"$f":"IFERROR(VLOOKUP(ROW()-14,Sheet2!$A$6:$G$98,1,0),\"\")","v":""},{"$f":"IFERROR(VLOOKUP(ROW()-14,Sheet2!$A$6:$G$98,4,0),\"\")","v":""},{"$f":"IFERROR(VLOOKUP(ROW()-14,Sheet2!$A$6:$G$98,5,0),\"\")","v":""}]
[null,{"$f":"IFERROR(VLOOKUP(ROW()-14,Sheet2!$A$6:$G$98,1,0),\"\")","v":""},{"$f":"IFERROR(VLOOKUP(ROW()-14,Sheet2!$A$6:$G$98,4,0),\"\")","v":""},{"$f":"IFERROR(VLOOKUP(ROW()-14,Sheet2!$A$6:$G$98,5,0),\"\")","v":""}]
[null,{"$f":"IFERROR(VLOOKUP(ROW()-14,Sheet2!$A$6:$G$98,1,0),\"\")","v":""},{"$f":"IFERROR(VLOOKUP(ROW()-14,Sheet2!$A$6:$G$98,4,0),\"\")","v":""},{"$f":"IFERROR(VLOOKUP(ROW()-14,Sheet2!$A$6:$G$98,5,0),\"\")","v":""}]
[null,{"$f":"IFERROR(VLOOKUP(ROW()-14,Sheet2!$A$6:$G$98,1,0),\"\")","v":""},{"$f":"IFERROR(VLOOKUP(ROW()-14,Sheet2!$A$6:$G$98,4,0),\"\")","v":""},{"$f":"IFERROR(VLOOKUP(ROW()-14,Sheet2!$A$6:$G$98,5,0),\"\")","v":""}]
[null,{"$f":"IFERROR(VLOOKUP(ROW()-14,Sheet2!$A$6:$G$98,1,0),\"\")","v":""},{"$f":"IFERROR(VLOOKUP(ROW()-14,Sheet2!$A$6:$G$98,4,0),\"\")","v":""},{"$f":"IFERROR(VLOOKUP(ROW()-14,Sheet2!$A$6:$G$98,5,0),\"\")","v":""}]
[]
[]
[]
[]
[]
[]
[]
[]
[]
[]
[]
[]
[]
[]
[]
[]
[null,null,"ولكم خالص تحياتنا،،،"]
[]
[]
[]
[null,null,"                                                           أمين عام نادي "]
[]
[null,null,"                                                          علي بن حسين "]

{"sheet":"التذاكر","index":4,"n_rows":50,"n_cols":6,"rows_kept":50,"cut":false,"hidden":false,"merged":[[46,0,47,0],[46,1,47,1],[46,3,47,3],[46,4,47,4],[46,5,47,5],[48,0,49,0],[48,1,49,1],[48,3,49,3],[48,4,49,4],[48,5,49,5],[42,0,43,0],[42,1,43,1],[42,3,43,3],[42,4,43,4],[42,5,43,5],[44,0,45,0],[44,1,45,1],[44,3,45,3],[44,4,45,4],[44,5,45,5],[38,0,39,0],[38,1,39,1],[38,3,39,3],[38,4,39,4],[38,5,39,5],[40,0,41,0],[40,1,41,1],[40,3,41,3],[40,4,41,4],[40,5,41,5],[34,0,35,0],[34,1,35,1],[34,3,35,3],[34,4,35,4],[34,5,35,5],[36,0,37,0],[36,1,37,1],[36,3,37,3],[36,4,37,4],[36,5,37,5],[30,0,31,0],[30,1,31,1],[30,3,31,3],[30,4,31,4],[30,5,31,5],[32,0,33,0],[32,1,33,1],[32,3,33,3],[32,4,33,4],[32,5,33,5],[26,0,27,0],[26,1,27,1],[26,3,27,3],[26,4,27,4],[26,5,27,5],[28,0,29,0],[28,1,29,1],[28,3,29,3],[28,4,29,4],[28,5,29,5],[22,0,23,0],[22,1,23,1],[22,3,23,3],[22,4,23,4],[22,5,23,5],[24,0,25,0],[24,1,25,1],[24,3,25,3],[24,4,25,4],[24,5,25,5],[18,0,19,0],[18,1,19,1],[18,3,19,3],[18,4,19,4],[18,5,19,5],[20,0,21,0],[20,1,21,1],[20,3,21,3],[20,4,21,4],[20,5,21,5],[14,0,15,0],[14,1,15,1],[14,3,15,3],[14,4,15,4],[14,5,15,5],[16,0,17,0],[16,1,17,1],[16,3,17,3],[16,4,17,4],[16,5,17,5],[10,0,11,0],[10,1,11,1],[10,3,11,3],[10,4,11,4],[10,5,11,5],[12,0,13,0],[12,1,13,1],[12,3,13,3],[12,4,13,4],[12,5,13,5],[6,0,7,0],[6,1,7,1],[6,3,7,3],[6,4,7,4],[6,5,7,5],[8,0,9,0],[8,1,9,1],[8,3,9,3],[8,4,9,4],[8,5,9,5]]}
[]
[]
[]
[]
[]
["م"," رقم اللاعب  ","الإسم","تاريخ الميلاد","رقم الهوية","الصفة"]
[1,{"$f":"IF(C7=\"\",\"\",INDEX(القائمة_الرئيسية!C:C,MATCH($C7,القائمة_الرئيسية!D:D,)))","v":362716},"لاعب 1",{"$f":"IF(C7=\"\",\"\",INDEX(القائمة_الرئيسية!E:E,MATCH($C7,القائمة_الرئيسية!D:D,)))","v":"2004-05-06"},{"$f":"IF(C7=\"\",\"\",INDEX(القائمة_الرئيسية!G:G,MATCH($C7,القائمة_الرئيسية!D:D,)))","v":1124684836},{"$f":"IF(C7=\"\",\"\",INDEX(القائمة_الرئيسية!H:H,MATCH($C7,القائمة_الرئيسية!D:D,)))","v":"لاعب"}]
[null,null,{"$f":"IF(C7=\"\",\"\",INDEX(القائمة_الرئيسية!I:I,MATCH($C7,القائمة_الرئيسية!D:D,)))","v":"player 1"}]
[2,{"$f":"IF(C9=\"\",\"\",INDEX(القائمة_الرئيسية!C:C,MATCH($C9,القائمة_الرئيسية!D:D,)))","v":""},null,{"$f":"IF(C9=\"\",\"\",INDEX(القائمة_الرئيسية!E:E,MATCH($C9,القائمة_الرئيسية!D:D,)))","v":""},{"$f":"IF(C9=\"\",\"\",INDEX(القائمة_الرئيسية!G:G,MATCH($C9,القائمة_الرئيسية!D:D,)))","v":""},{"$f":"IF(C9=\"\",\"\",INDEX(القائمة_الرئيسية!H:H,MATCH($C9,القائمة_الرئيسية!D:D,)))","v":""}]
[null,null,{"$f":"IF(C9=\"\",\"\",INDEX(القائمة_الرئيسية!I:I,MATCH($C9,القائمة_الرئيسية!D:D,)))","v":""}]
[3,{"$f":"IF(C11=\"\",\"\",INDEX(القائمة_الرئيسية!C:C,MATCH($C11,القائمة_الرئيسية!D:D,)))","v":""},null,{"$f":"IF(C11=\"\",\"\",INDEX(القائمة_الرئيسية!E:E,MATCH($C11,القائمة_الرئيسية!D:D,)))","v":""},{"$f":"IF(C11=\"\",\"\",INDEX(القائمة_الرئيسية!G:G,MATCH($C11,القائمة_الرئيسية!D:D,)))","v":""},{"$f":"IF(C11=\"\",\"\",INDEX(القائمة_الرئيسية!H:H,MATCH($C11,القائمة_الرئيسية!D:D,)))","v":""}]
[null,null,{"$f":"IF(C11=\"\",\"\",INDEX(القائمة_الرئيسية!I:I,MATCH($C11,القائمة_الرئيسية!D:D,)))","v":""}]
[4,{"$f":"IF(C13=\"\",\"\",INDEX(القائمة_الرئيسية!C:C,MATCH($C13,القائمة_الرئيسية!D:D,)))","v":""},null,{"$f":"IF(C13=\"\",\"\",INDEX(القائمة_الرئيسية!E:E,MATCH($C13,القائمة_الرئيسية!D:D,)))","v":""},{"$f":"IF(C13=\"\",\"\",INDEX(القائمة_الرئيسية!G:G,MATCH($C13,القائمة_الرئيسية!D:D,)))","v":""},{"$f":"IF(C13=\"\",\"\",INDEX(القائمة_الرئيسية!H:H,MATCH($C13,القائمة_الرئيسية!D:D,)))","v":""}]
[null,null,{"$f":"IF(C13=\"\",\"\",INDEX(القائمة_الرئيسية!I:I,MATCH($C13,القائمة_الرئيسية!D:D,)))","v":""}]
[5,{"$f":"IF(C15=\"\",\"\",INDEX(القائمة_الرئيسية!C:C,MATCH($C15,القائمة_الرئيسية!D:D,)))","v":""},null,{"$f":"IF(C15=\"\",\"\",INDEX(القائمة_الرئيسية!E:E,MATCH($C15,القائمة_الرئيسية!D:D,)))","v":""},{"$f":"IF(C15=\"\",\"\",INDEX(القائمة_الرئيسية!G:G,MATCH($C15,القائمة_الرئيسية!D:D,)))","v":""},{"$f":"IF(C15=\"\",\"\",INDEX(القائمة_الرئيسية!H:H,MATCH($C15,القائمة_الرئيسية!D:D,)))","v":""}]
[null,null,{"$f":"IF(C15=\"\",\"\",INDEX(القائمة_الرئيسية!I:I,MATCH($C15,القائمة_الرئيسية!D:D,)))","v":""}]
[6,{"$f":"IF(C17=\"\",\"\",INDEX(القائمة_الرئيسية!C:C,MATCH($C17,القائمة_الرئيسية!D:D,)))","v":""},null,{"$f":"IF(C17=\"\",\"\",INDEX(القائمة_الرئيسية!E:E,MATCH($C17,القائمة_الرئيسية!D:D,)))","v":""},{"$f":"IF(C17=\"\",\"\",INDEX(القائمة_الرئيسية!G:G,MATCH($C17,القائمة_الرئيسية!D:D,)))","v":""},{"$f":"IF(C17=\"\",\"\",INDEX(القائمة_الرئيسية!H:H,MATCH($C17,القائمة_الرئيسية!D:D,)))","v":""}]
[null,null,{"$f":"IF(C17=\"\",\"\",INDEX(القائمة_الرئيسية!I:I,MATCH($C17,القائمة_الرئيسية!D:D,)))","v":""}]
[7,{"$f":"IF(C19=\"\",\"\",INDEX(القائمة_الرئيسية!C:C,MATCH($C19,القائمة_الرئيسية!D:D,)))","v":""},null,{"$f":"IF(C19=\"\",\"\",INDEX(القائمة_الرئيسية!E:E,MATCH($C19,القائمة_الرئيسية!D:D,)))","v":""},{"$f":"IF(C19=\"\",\"\",INDEX(القائمة_الرئيسية!G:G,MATCH($C19,القائمة_الرئيسية!D:D,)))","v":""},{"$f":"IF(C19=\"\",\"\",INDEX(القائمة_الرئيسية!H:H,MATCH($C19,القائمة_الرئيسية!D:D,)))","v":""}]
[null,null,{"$f":"IF(C19=\"\",\"\",INDEX(القائمة_الرئيسية!I:I,MATCH($C19,القائمة_الرئيسية!D:D,)))","v":""}]
[8,{"$f":"IF(C21=\"\",\"\",INDEX(القائمة_الرئيسية!C:C,MATCH($C21,القائمة_الرئيسية!D:D,)))","v":""},null,{"$f":"IF(C21=\"\",\"\",INDEX(القائمة_الرئيسية!E:E,MATCH($C21,القائمة_الرئيسية!D:D,)))","v":""},{"$f":"IF(C21=\"\",\"\",INDEX(القائمة_الرئيسية!G:G,MATCH($C21,القائمة_الرئيسية!D:D,)))","v":""},{"$f":"IF(C21=\"\",\"\",INDEX(القائمة_الرئيسية!H:H,MATCH($C21,القائمة_الرئيسية!D:D,)))","v":""}]
[null,null,{"$f":"IF(C21=\"\",\"\",INDEX(القائمة_الرئيسية!I:I,MATCH($C21,القائمة_الرئيسية!D:D,)))","v":""}]
[9,{"$f":"IF(C23=\"\",\"\",INDEX(القائمة_الرئيسية!C:C,MATCH($C23,القائمة_الرئيسية!D:D,)))","v":""},null,{"$f":"IF(C23=\"\",\"\",INDEX(القائمة_الرئيسية!E:E,MATCH($C23,القائمة_الرئيسية!D:D,)))","v":""},{"$f":"IF(C23=\"\",\"\",INDEX(القائمة_الرئيسية!G:G,MATCH($C23,القائمة_الرئيسية!D:D,)))","v":""},{"$f":"IF(C23=\"\",\"\",INDEX(القائمة_الرئيسية!H:H,MATCH($C23,القائمة_الرئيسية!D:D,)))","v":""}]
[null,null,{"$f":"IF(C23=\"\",\"\",INDEX(القائمة_الرئيسية!I:I,MATCH($C23,القائمة_الرئيسية!D:D,)))","v":""}]
[10,{"$f":"IF(C25=\"\",\"\",INDEX(القائمة_الرئيسية!C:C,MATCH($C25,القائمة_الرئيسية!D:D,)))","v":""},null,{"$f":"IF(C25=\"\",\"\",INDEX(القائمة_الرئيسية!E:E,MATCH($C25,القائمة_الرئيسية!D:D,)))","v":""},{"$f":"IF(C25=\"\",\"\",INDEX(القائمة_الرئيسية!G:G,MATCH($C25,القائمة_الرئيسية!D:D,)))","v":""},{"$f":"IF(C25=\"\",\"\",INDEX(القائمة_الرئيسية!H:H,MATCH($C25,القائمة_الرئيسية!D:D,)))","v":""}]
[null,null,{"$f":"IF(C25=\"\",\"\",INDEX(القائمة_الرئيسية!I:I,MATCH($C25,القائمة_الرئيسية!D:D,)))","v":""}]
[11,{"$f":"IF(C27=\"\",\"\",INDEX(القائمة_الرئيسية!C:C,MATCH($C27,القائمة_الرئيسية!D:D,)))","v":""},null,{"$f":"IF(C27=\"\",\"\",INDEX(القائمة_الرئيسية!E:E,MATCH($C27,القائمة_الرئيسية!D:D,)))","v":""},{"$f":"IF(C27=\"\",\"\",INDEX(القائمة_الرئيسية!G:G,MATCH($C27,القائمة_الرئيسية!D:D,)))","v":""},{"$f":"IF(C27=\"\",\"\",INDEX(القائمة_الرئيسية!H:H,MATCH($C27,القائمة_الرئيسية!D:D,)))","v":""}]
[null,null,{"$f":"IF(C27=\"\",\"\",INDEX(القائمة_الرئيسية!I:I,MATCH($C27,القائمة_الرئيسية!D:D,)))","v":""}]
[12,{"$f":"IF(C29=\"\",\"\",INDEX(القائمة_الرئيسية!C:C,MATCH($C29,القائمة_الرئيسية!D:D,)))","v":""},null,{"$f":"IF(C29=\"\",\"\",INDEX(القائمة_الرئيسية!E:E,MATCH($C29,القائمة_الرئيسية!D:D,)))","v":""},{"$f":"IF(C29=\"\",\"\",INDEX(القائمة_الرئيسية!G:G,MATCH($C29,القائمة_الرئيسية!D:D,)))","v":""},{"$f":"IF(C29=\"\",\"\",INDEX(القائمة_الرئيسية!H:H,MATCH($C29,القائمة_الرئيسية!D:D,)))","v":""}]
[null,null,{"$f":"IF(C29=\"\",\"\",INDEX(القائمة_الرئيسية!I:I,MATCH($C29,القائمة_الرئيسية!D:D,)))","v":""}]
[13,{"$f":"IF(C31=\"\",\"\",INDEX(القائمة_الرئيسية!C:C,MATCH($C31,القائمة_الرئيسية!D:D,)))","v":""},null,{"$f":"IF(C31=\"\",\"\",INDEX(القائمة_الرئيسية!E:E,MATCH($C31,القائمة_الرئيسية!D:D,)))","v":""},{"$f":"IF(C31=\"\",\"\",INDEX(القائمة_الرئيسية!G:G,MATCH($C31,القائمة_الرئيسية!D:D,)))","v":""},{"$f":"IF(C31=\"\",\"\",INDEX(القائمة_الرئيسية!H:H,MATCH($C31,القائمة_الرئيسية!D:D,)))","v":""}]
[null,null,{"$f":"IF(C31=\"\",\"\",INDEX(القائمة_الرئيسية!I:I,MATCH($C31,القائمة_الرئيسية!D:D,)))","v":""}]
[14,{"$f":"IF(C33=\"\",\"\",INDEX(القائمة_الرئيسية!C:C,MATCH($C33,القائمة_الرئيسية!D:D,)))","v":""},null,{"$f":"IF(C33=\"\",\"\",INDEX(القائمة_الرئيسية!E:E,MATCH($C33,القائمة_الرئيسية!D:D,)))","v":""},{"$f":"IF(C33=\"\",\"\",INDEX(القائمة_الرئيسية!G:G,MATCH($C33,القائمة_الرئيسية!D:D,)))","v":""},{"$f":"IF(C33=\"\",\"\",INDEX(القائمة_الرئيسية!H:H,MATCH($C33,القائمة_الرئيسية!D:D,)))","v":""}]
[null,null,{"$f":"IF(C33=\"\",\"\",INDEX(القائمة_الرئيسية!I:I,MATCH($C33,القائمة_الرئيسية!D:D,)))","v":""}]
[15,{"$f":"IF(C35=\"\",\"\",INDEX(القائمة_الرئيسية!C:C,MATCH($C35,القائمة_الرئيسية!D:D,)))","v":""},null,{"$f":"IF(C35=\"\",\"\",INDEX(القائمة_الرئيسية!E:E,MATCH($C35,القائمة_الرئيسية!D:D,)))","v":""},{"$f":"IF(C35=\"\",\"\",INDEX(القائمة_الرئيسية!G:G,MATCH($C35,القائمة_الرئيسية!D:D,)))","v":""},{"$f":"IF(C35=\"\",\"\",INDEX(القائمة_الرئيسية!H:H,MATCH($C35,القائمة_الرئيسية!D:D,)))","v":""}]
[null,null,{"$f":"IF(C35=\"\",\"\",INDEX(القائمة_الرئيسية!I:I,MATCH($C35,القائمة_الرئيسية!D:D,)))","v":""}]
[16,{"$f":"IF(C37=\"\",\"\",INDEX(القائمة_الرئيسية!C:C,MATCH($C37,القائمة_الرئيسية!D:D,)))","v":""},null,{"$f":"IF(C37=\"\",\"\",INDEX(القائمة_الرئيسية!E:E,MATCH($C37,القائمة_الرئيسية!D:D,)))","v":""},{"$f":"IF(C37=\"\",\"\",INDEX(القائمة_الرئيسية!G:G,MATCH($C37,القائمة_الرئيسية!D:D,)))","v":""},{"$f":"IF(C37=\"\",\"\",INDEX(القائمة_الرئيسية!H:H,MATCH($C37,القائمة_الرئيسية!D:D,)))","v":""}]
[null,null,{"$f":"IF(C37=\"\",\"\",INDEX(القائمة_الرئيسية!I:I,MATCH($C37,القائمة_الرئيسية!D:D,)))","v":""}]
[17,{"$f":"IF(C39=\"\",\"\",INDEX(القائمة_الرئيسية!C:C,MATCH($C39,القائمة_الرئيسية!D:D,)))","v":""},null,{"$f":"IF(C39=\"\",\"\",INDEX(القائمة_الرئيسية!E:E,MATCH($C39,القائمة_الرئيسية!D:D,)))","v":""},{"$f":"IF(C39=\"\",\"\",INDEX(القائمة_الرئيسية!G:G,MATCH($C39,القائمة_الرئيسية!D:D,)))","v":""},{"$f":"IF(C39=\"\",\"\",INDEX(القائمة_الرئيسية!H:H,MATCH($C39,القائمة_الرئيسية!D:D,)))","v":""}]
[null,null,{"$f":"IF(C39=\"\",\"\",INDEX(القائمة_الرئيسية!I:I,MATCH($C39,القائمة_الرئيسية!D:D,)))","v":""}]
[18,{"$f":"IF(C41=\"\",\"\",INDEX(القائمة_الرئيسية!C:C,MATCH($C41,القائمة_الرئيسية!D:D,)))","v":""},null,{"$f":"IF(C41=\"\",\"\",INDEX(القائمة_الرئيسية!E:E,MATCH($C41,القائمة_الرئيسية!D:D,)))","v":""},{"$f":"IF(C41=\"\",\"\",INDEX(القائمة_الرئيسية!G:G,MATCH($C41,القائمة_الرئيسية!D:D,)))","v":""},{"$f":"IF(C41=\"\",\"\",INDEX(القائمة_الرئيسية!H:H,MATCH($C41,القائمة_الرئيسية!D:D,)))","v":""}]
[null,null,{"$f":"IF(C41=\"\",\"\",INDEX(القائمة_الرئيسية!I:I,MATCH($C41,القائمة_الرئيسية!D:D,)))","v":""}]
[19,{"$f":"IF(C43=\"\",\"\",INDEX(القائمة_الرئيسية!C:C,MATCH($C43,القائمة_الرئيسية!D:D,)))","v":""},null,{"$f":"IF(C43=\"\",\"\",INDEX(القائمة_الرئيسية!E:E,MATCH($C43,القائمة_الرئيسية!D:D,)))","v":""},{"$f":"IF(C43=\"\",\"\",INDEX(القائمة_الرئيسية!G:G,MATCH($C43,القائمة_الرئيسية!D:D,)))","v":""},{"$f":"IF(C43=\"\",\"\",INDEX(القائمة_الرئيسية!H:H,MATCH($C43,القائمة_الرئيسية!D:D,)))","v":""}]
[null,null,{"$f":"IF(C43=\"\",\"\",INDEX(القائمة_الرئيسية!I:I,MATCH($C43,القائمة_الرئيسية!D:D,)))","v":""}]
[20,{"$f":"IF(C45=\"\",\"\",INDEX(القائمة_الرئيسية!C:C,MATCH($C45,القائمة_الرئيسية!D:D,)))","v":""},null,{"$f":"IF(C45=\"\",\"\",INDEX(القائمة_الرئيسية!E:E,MATCH($C45,القائمة_الرئيسية!D:D,)))","v":""},{"$f":"IF(C45=\"\",\"\",INDEX(القائمة_الرئيسية!G:G,MATCH($C45,القائمة_الرئيسية!D:D,)))","v":""},{"$f":"IF(C45=\"\",\"\",INDEX(القائمة_الرئيسية!H:H,MATCH($C45,القائمة_الرئيسية!D:D,)))","v":""}]
[null,null,{"$f":"IF(C45=\"\",\"\",INDEX(القائمة_الرئيسية!I:I,MATCH($C45,القائمة_الرئيسية!D:D,)))","v":""}]
[21,{"$f":"IF(C47=\"\",\"\",INDEX(القائمة_الرئيسية!C:C,MATCH($C47,القائمة_الرئيسية!D:D,)))","v":""},null,{"$f":"IF(C47=\"\",\"\",INDEX(القائمة_الرئيسية!E:E,MATCH($C47,القائمة_الرئيسية!D:D,)))","v":""},{"$f":"IF(C47=\"\",\"\",INDEX(القائمة_الرئيسية!G:G,MATCH($C47,القائمة_الرئيسية!D:D,)))","v":""},{"$f":"IF(C47=\"\",\"\",INDEX(القائمة_الرئيسية!H:H,MATCH($C47,القائمة_الرئيسية!D:D,)))","v":""}]
[null,null,{"$f":"IF(C47=\"\",\"\",INDEX(القائمة_الرئيسية!I:I,MATCH($C47,القائمة_الرئيسية!D:D,)))","v":""}]
[22,{"$f":"IF(C49=\"\",\"\",INDEX(القائمة_الرئيسية!C:C,MATCH($C49,القائمة_الرئيسية!D:D,)))","v":""},null,{"$f":"IF(C49=\"\",\"\",INDEX(القائمة_الرئيسية!E:E,MATCH($C49,القائمة_الرئيسية!D:D,)))","v":""},{"$f":"IF(C49=\"\",\"\",INDEX(القائمة_الرئيسية!G:G,MATCH($C49,القائمة_الرئيسية!D:D,)))","v":""},{"$f":"IF(C49=\"\",\"\",INDEX(القائمة_الرئيسية!H:H,MATCH($C49,القائمة_الرئيسية!D:D,)))","v":""}]
[null,null,{"$f":"IF(C49=\"\",\"\",INDEX(القائمة_الرئيسية!I:I,MATCH($C49,القائمة_الرئيسية!D:D,)))","v":""}]

{"sheet":"قائمة المباريات","index":5,"n_rows":102,"n_cols":35,"rows_kept":102,"cut":false,"hidden":false,"merged":[[31,1,31,2],[31,4,31,5],[31,7,31,8],[34,1,34,2],[34,7,34,8],[20,7,29,8],[7,25,7,26],[7,27,7,28],[7,29,7,30],[8,1,8,8],[9,1,9,8]]}
[]
[]
[]
[null,"           "]
[]
[null,"   "]
[]
[]
[null,"الفريقان المتباريان : الخليج و مضر",null,null,null,null,null,null,null,null,null,null,null,null,null,null,null,null,"الاسم","رقم الفانيلة","الكرنيهه","الدرجة","ميلاد اللاعب","ملاحظات","السلام",null,null,null,null,null,null,null,null,"أصفر","أحمر"]
[null,"اسم النادي : الخليج   لون الفانلات : اصفر   درجة المسابقة :براعم  نوع المسابقة : نهائيات المملكة للبراعم تحت 15",null,null,null,null,null,null,null,null,null,null,null,null,null,null,null,1,"لاعب 1",5,362716,{"$f":"IF(AND(W10<=2005),\"براعم\",IF(AND(W10<=2007),\"براعم أ\",IF(AND(W10>=2008),\"مدارس\")))","v":"براعم"},2004,null,null,null,null,null,null,null,null,null,null,{"$f":"COUNTIF(Y10:AE10,1)","v":0},{"$f":"COUNTIF(Y10:AE10,2)","v":0}]
[null,null,null,null,null,null,null,null,null,null,null,null,null,null,null,null,null,2,"لاعب 2",3,359189,{"$f":"IF(AND(W11<=2005),\"براعم\",IF(AND(W11<=2007),\"براعم أ\",IF(AND(W11>=2008),\"مدارس\")))","v":"براعم"},2004,null,null,null,null,null,null,null,null,null,null,{"$f":"COUNTIF(Y11:AE11,1)","v":0},{"$f":"COUNTIF(Y11:AE11,2)","v":0}]
[null,"رقم الفانلة","اسم اللاعب","رقم البطاقة","الفئة","ميلاد اللاعب","ملاحظات","الاداريين","الاسم",null,null,null,null,null,null,null,null,3,"لاعب 3",2,366800,"براعم",2005,null,null,null,null,null,null,null,null,null,null,0,0]
[null,{"$f":"IF(C13=\"\",\"\",INDEX($T$10:$T$150,MATCH($C13,$S$10:$S$150,)))","v":5},"لاعب 1",{"$f":"IF(C13=\"\",\"\",INDEX($U$10:$U$150,MATCH($C13,$S$10:$S$150,)))","v":362716},{"$f":"IF(C13=\"\",\"\",INDEX($V$10:$V$150,MATCH($C13,$S$10:$S$150,)))","v":"براعم"},{"$f":"IF(C13=\"\",\"\",INDEX($W$10:$W$150,MATCH($C13,$S$10:$S$150,)))","v":2004},{"$f":"IF(C13=\"\",\"\",INDEX($X$10:$X$150,MATCH($C13,$S$10:$S$150,)))","v":0},"إداري الفريق","إداري",null,null,null,null,null,null,null,null,4,"لاعب 4",99,359251,"براعم",2005,null,null,null,null,null,null,null,null,null,null,0,0]
[null,{"$f":"IF(C14=\"\",\"\",INDEX($T$10:$T$150,MATCH($C14,$S$10:$S$150,)))","v":3},"لاعب 2",{"$f":"IF(C14=\"\",\"\",INDEX($U$10:$U$150,MATCH($C14,$S$10:$S$150,)))","v":359189},{"$f":"IF(C14=\"\",\"\",INDEX($V$10:$V$150,MATCH($C14,$S$10:$S$150,)))","v":"براعم"},{"$f":"IF(C14=\"\",\"\",INDEX($W$10:$W$150,MATCH($C14,$S$10:$S$150,)))","v":2004},{"$f":"IF(C14=\"\",\"\",INDEX($X$10:$X$150,MATCH($C14,$S$10:$S$150,)))","v":0},"المدرب","مدرب",null,null,null,null,null,null,null,null,5,"لاعب 5",31,366545,"براعم",2005,"حارس مرمى",null,null,null,null,null,null,null,null,null,0,0]
[null,{"$f":"IF(C15=\"\",\"\",INDEX($T$10:$T$150,MATCH($C15,$S$10:$S$150,)))","v":2},"لاعب 3",366800,{"$f":"IF(C15=\"\",\"\",INDEX($V$10:$V$150,MATCH($C15,$S$10:$S$150,)))","v":"براعم"},2005,0,"مساعد المدرب","مساعد",null,null,null,null,null,null,null,null,6,"لاعب 6",21,343442,"براعم",2004,"حارس مرمى",null,null,null,null,null,null,null,null,null,0,0]
[null,{"$f":"IF(C16=\"\",\"\",INDEX($T$10:$T$150,MATCH($C16,$S$10:$S$150,)))","v":31},"لاعب 5",{"$f":"IF(C16=\"\",\"\",INDEX($U$10:$U$150,MATCH($C16,$S$10:$S$150,)))","v":366545},"براعم",2005,{"$f":"IF(C16=\"\",\"\",INDEX($X$10:$X$150,MATCH($C16,$S$10:$S$150,)))","v":"حارس مرمى"},"مدرب الحراس",null,null,null,null,null,null,null,null,null,7,"لاعب 7",30,350906,"براعم",2004,null,null,null,null,null,null,null,null,null,null,0,0]
[null,99,"لاعب 4",359251,"براعم",2005,0,"معد بدني",null,null,null,null,null,null,null,null,null,8,"لاعب 8",0,358586,"براعم",2005,"حارس مرمى",null,null,null,null,null,null,null,null,null,0,0]
[null,30,"لاعب 7",350906,"براعم",2004,0,"أخصائي علاج",null,null,null,null,null,null,null,null,null,9,"لاعب 9",87,359255,"براعم",2004,"حارس مرمى",null,null,null,null,null,null,null,null,null,0,0]
[null,21,"لاعب 6",343442,"براعم",2004,"حارس مرمى",null,null,null,null,null,null,null,null,null,null,10,"لاعب 10",0,358401,"براعم",2005,null,null,null,null,null,null,null,null,null,null,0,0]
[null,0,"لاعب 8",358586,"براعم",2005,"حارس مرمى",null,null,null,null,null,null,null,null,null,null,11,"لاعب 11",13,352264,"براعم",2004,null,null,null,null,null,null,null,null,null,null,0,0]
[null,87,"لاعب 9",359255,"براعم",2004,"حارس مرمى",null,null,null,null,null,null,null,null,null,null,12,"لاعب 12",37,362715,"براعم",2004,null,null,null,null,null,null,null,null,null,null,0,0]
[null,0,"لاعب 10",358401,"براعم",2005,0,null,null,null,null,null,null,null,null,null,null,13,"لاعب 13",0,366624,"براعم",2005,null,null,null,null,null,null,null,null,null,null,0,0]
[null,13,"لاعب 11",352264,"براعم",2004,0,null,null,null,null,null,null,null,null,null,null,14,"لاعب 14",88,366904,"براعم",2005,null,null,null,null,null,null,null,null,null,null,0,0]
[null,37,"لاعب 12",362715,"براعم",2004,0,null,null,null,null,null,null,null,null,null,null,15,"لاعب 15",10,344708,"براعم",2004,"حارس مرمى",null,null,null,null,null,null,null,null,null,0,0]
[null,0,"لاعب 13",366624,"براعم",2005,0,null,null,null,null,null,null,null,null,null,null,16,"لاعب 16",7,371463,"براعم",2004,null,null,null,null,null,null,null,null,null,null,0,0]
[null,88,"لاعب 14",366904,"براعم",2005,0,null,null,null,null,null,null,null,null,null,null,17,"لاعب 17",6,374554,"براعم",2005,null,null,null,null,null,null,null,null,null,null,0,0]
[null,10,"لاعب 15",344708,"براعم",2004,"حارس مرمى",null,null,null,null,null,null,null,null,null,null,18,"لاعب 18",24,358448,"براعم",2005,null,null,null,null,null,null,null,null,null,null,0,0]
[null,7,"لاعب 16",371463,"براعم",2004,0,null,null,null,null,null,null,null,null,null,null,19,"لاعب 19",78,375034,"براعم",2004,null,null,null,null,null,null,null,null,null,null,0,0]
[null,6,"لاعب 17",374554,"براعم",2005,0,null,null,null,null,null,null,null,null,null,null,20,"لاعب 20",90,330936,"براعم",2004,null,null,null,null,null,null,null,null,null,null,0,0]
[null,24,"لاعب 18",358448,"براعم",2005,0,null,null,null,null,null,null,null,null,null,null,21,"لاعب 21",33,362712,"براعم",2004,null,null,null,null,null,null,null,null,null,null,0,0]
[null,null,null,null,null,null,null,null,null,null,null,null,null,null,null,null,null,22,"لاعب 22",15,374555,"براعم",2005,null,null,null,null,null,null,null,null,null,null,0,0]
[null,"مدير الفريق",null,null,"المراقب الإداري",null,null,"حكم المباراة",null,null,null,null,null,null,null,null,null,23,"لاعب 23",0,343773,"براعم",2005,null,null,null,null,null,null,null,null,null,null,0,0]
[null,null,null,null,null,null,null,null,null,null,null,null,null,null,null,null,null,24,"لاعب 24",0,375065,"براعم",2005,null,null,null,null,null,null,null,null,null,null,0,0]
[null,null,null,null,null,null,null,null,null,null,null,null,null,null,null,null,null,25,"لاعب 25",20,364821,"براعم",2005,null,null,null,null,null,null,null,null,null,null,0,0]
[null,"اداري",null,null,"----------------------------------",null,null,"-----------------------------",null,null,null,null,null,null,null,null,null,26,"لاعب 26",0,370197,"براعم",2004,"حارس مرمى",null,null,null,null,null,null,null,null,null,0,0]
[null,null,null,null,null,null,null,null,null,null,null,null,null,null,null,null,null,27,"لاعب 27",0,375683,"براعم",2005,null,null,null,null,null,null,null,null,null,null,0,0]
[null,null,null,null,null,null,null,null,null,null,null,null,null,null,null,null,null,28,"لاعب 28",19,377221,"براعم",2004,"حارس مرمى",null,null,null,null,null,null,null,null,null,0,0]
[null,null,null,null,null,null,null,null,null,null,null,null,null,null,null,null,null,29,"لاعب 29",0,375024,"براعم",2005,null,null,null,null,null,null,null,null,null,null,0,0]
[null,null,null,null,null,null,null,null,null,null,null,null,null,null,null,null,null,30,"لاعب 30",0,366908,"براعم",2005,"حارس مرمى",null,null,null,null,null,null,null,null,null,0,0]
[null,null,null,null,null,null,null,null,null,null,null,null,null,null,null,null,null,31,"لاعب 31",9,290959,"براعم",2004,null,null,null,null,null,null,null,null,null,null,0,0]
[null,null,null,null,null,null,null,null,null,null,null,null,null,null,null,null,null,32,"لاعب 32",23,374552,"براعم",2005,null,null,null,null,null,null,null,null,null,null,0,0]
[null,null,null,null,null,null,null,null,null,null,null,null,null,null,null,null,null,33,"لاعب 33",12,369729,"براعم",2005,null,1,null,null,null,null,null,null,null,null,1,0]
[null,null,null,null,null,null,null,null,null,null,null,null,null,null,null,null,null,34,"لاعب 34",0,366793,"براعم",2005,null,null,null,null,null,null,null,null,null,null,0,0]
[null,null,null,null,null,null,null,null,null,null,null,null,null,null,null,null,null,35,"لاعب 35",56,362691,"براعم",2004,null,null,null,null,null,null,null,null,null,null,0,0]
[null,null,null,null,null,null,null,null,null,null,null,null,null,null,null,null,null,36,"لاعب 36",1,343070,"براعم",2004,null,null,null,null,null,null,null,null,null,null,0,0]
[null,null,null,null,null,null,null,null,null,null,null,null,null,null,null,null,null,37,"لاعب 37",18,371926,"براعم",2004,null,null,null,null,null,null,null,null,null,null,0,0]
[null,null,null,null,null,null,null,null,null,null,null,null,null,null,null,null,null,38,"لاعب 38",4,358455,"براعم",2004,null,null,null,null,null,null,null,null,null,null,0,0]
[null,null,null,null,null,null,null,null,null,null,null,null,null,null,null,null,null,39,"لاعب 39",0,359827,"براعم",2004,null,null,null,null,null,null,null,null,null,null,0,0]
[null,null,null,null,null,null,null,null,null,null,null,null,null,null,null,null,null,40,"لاعب 40",0,362694,"براعم",2004,null,null,null,null,null,null,null,null,null,null,0,0]
[null,null,null,null,null,null,null,null,null,null,null,null,null,null,null,null,null,41,"لاعب 41",0,364474,"براعم",2005,null,null,null,null,null,null,null,null,null,null,0,0]
[null,null,null,null,null,null,null,null,null,null,null,null,null,null,null,null,null,42,"لاعب 42",8,358246,"براعم",2004,null,null,null,null,null,null,null,null,null,null,0,0]
[null,null,null,null,null,null,null,null,null,null,null,null,null,null,null,null,null,43,"لاعب 43",0,366912,"براعم",2005,null,null,null,null,null,null,null,null,null,null,0,0]
[null,null,null,null,null,null,null,null,null,null,null,null,null,null,null,null,null,44,"لاعب 44",0,359185,"براعم",2004,null,null,null,null,null,null,null,null,null,null,0,0]
[null,null,null,null,null,null,null,null,null,null,null,null,null,null,null,null,null,45,"لاعب 45",0,367726,"براعم",2005,null,null,null,null,null,null,null,null,null,null,0,0]
[null,null,null,null,null,null,null,null,null,null,null,null,null,null,null,null,null,46,"لاعب 46",22,374553,"براعم",2005,null,null,null,null,null,null,null,null,null,null,0,0]
[null,null,null,null,null,null,null,null,null,null,null,null,null,null,null,null,null,47,"لاعب 47",0,361632,"براعم",2005,null,null,null,null,null,null,null,null,null,null,0,0]
[null,null,null,null,null,null,null,null,null,null,null,null,null,null,null,null,null,48,"لاعب 48",11,358561,"براعم",2004,null,null,null,null,null,null,null,null,null,null,0,0]
[null,null,null,null,null,null,null,null,null,null,null,null,null,null,null,null,null,49,"لاعب 49",0,375039,"براعم",2004,null,null,null,null,null,null,null,null,null,null,0,0]
[null,null,null,null,null,null,null,null,null,null,null,null,null,null,null,null,null,50,"لاعب 50",14,359187,"براعم",2004,null,null,null,null,null,null,null,null,null,null,0,0]
[null,null,null,null,null,null,null,null,null,null,null,null,null,null,null,null,null,51,"لاعب 51",0,318204,"براعم",2004,null,null,null,null,null,null,null,null,null,null,0,0]
[null,null,null,null,null,null,null,null,null,null,null,null,null,null,null,null,null,52,"لاعب 52",29,378657,"براعم أ",2006,null,null,null,null,null,null,null,null,null,null,0,0]
[null,null,null,null,null,null,null,null,null,null,null,null,null,null,null,null,null,53,"لاعب 53",4,366770,"براعم أ",2006,null,null,null,null,null,null,null,null,null,null,0,0]
[null,null,null,null,null,null,null,null,null,null,null,null,null,null,null,null,null,54,"لاعب 54",null,371200,"براعم أ",2007,null,null,null,null,null,null,null,null,null,null,0,0]
[null,null,null,null,null,null,null,null,null,null,null,null,null,null,null,null,null,55,"لاعب 55",17,290325,"براعم أ",2006,null,null,null,null,null,null,null,null,null,null,0,0]
[null,null,null,null,null,null,null,null,null,null,null,null,null,null,null,null,null,56,"لاعب 56",27,371199,"مدارس",2008,null,null,null,null,null,null,null,null,null,null,0,0]
[null,null,null,null,null,null,null,null,null,null,null,null,null,null,null,null,null,57,"لاعب 57",15,375020,"براعم أ",2007,null,null,null,null,null,null,null,null,null,null,0,0]
[null,null,null,null,null,null,null,null,null,null,null,null,null,null,null,null,null,58,"لاعب 58",86,360805,"براعم أ",2008,null,null,null,null,null,null,null,null,null,null,0,0]
[null,null,null,null,null,null,null,null,null,null,null,null,null,null,null,null,null,59,"لاعب 59",24,366548,"براعم أ",2007,null,null,null,null,null,null,null,null,null,null,0,0]
[null,null,null,null,null,null,null,null,null,null,null,null,null,null,null,null,null,60,"لاعب 60",18,358588,"براعم أ",2006,null,null,null,null,null,null,null,null,null,null,0,0]
[null,null,null,null,null,null,null,null,null,null,null,null,null,null,null,null,null,61,"لاعب 61",2,372096,"براعم أ",2007,null,null,null,null,null,null,null,null,null,null,0,0]
[null,null,null,null,null,null,null,null,null,null,null,null,null,null,null,null,null,62,"لاعب 62",13,371191,"براعم أ",2007,"حارس مرمى",null,null,null,null,null,null,null,null,null,0,0]
[null,null,null,null,null,null,null,null,null,null,null,null,null,null,null,null,null,63,"لاعب 63",6,359182,"براعم أ",2006,null,null,null,null,null,null,null,null,null,null,0,0]
[null,null,null,null,null,null,null,null,null,null,null,null,null,null,null,null,null,64,"لاعب 64",null,359825,"براعم أ",2006,null,null,null,null,null,null,null,null,null,null,0,0]
[null,null,null,null,null,null,null,null,null,null,null,null,null,null,null,null,null,65,"لاعب 65",1,375044,"براعم أ",2007,null,null,null,null,null,null,null,null,null,null,0,0]
[null,null,null,null,null,null,null,null,null,null,null,null,null,null,null,null,null,66,"لاعب 66",10,369735,{"$f":"IF(AND(W75<=2005),\"براعم\",IF(AND(W75<=2007),\"براعم أ\",IF(AND(W75>=2008),\"مدارس\")))","v":"براعم أ"},2006,null,null,null,null,null,null,null,null,null,null,{"$f":"COUNTIF(Y75:AE75,1)","v":0},{"$f":"COUNTIF(Y75:AE75,2)","v":0}]
[null,null,null,null,null,null,null,null,null,null,null,null,null,null,null,null,null,67,"لاعب 67",66,374594,"براعم أ",2006,null,null,null,null,null,null,null,null,null,null,0,0]
[null,null,null,null,null,null,null,null,null,null,null,null,null,null,null,null,null,68,"لاعب 68",19,377210,"براعم أ",2006,null,null,null,null,null,null,null,null,null,null,0,0]
[null,null,null,null,null,null,null,null,null,null,null,null,null,null,null,null,null,69,"لاعب 69",26,375685,"براعم أ",2006,null,null,null,null,null,null,null,null,null,null,0,0]
[null,null,null,null,null,null,null,null,null,null,null,null,null,null,null,null,null,70,"لاعب 70",12,370568,"براعم أ",2006,null,null,null,null,null,null,null,null,null,null,0,0]
[null,null,null,null,null,null,null,null,null,null,null,null,null,null,null,null,null,71,"لاعب 71",33,367728,"براعم أ",2006,"حارس مرمى",null,null,null,null,null,null,null,null,null,0,0]
[null,null,null,null,null,null,null,null,null,null,null,null,null,null,null,null,null,72,"لاعب 72",null,371202,"مدارس",2008,null,null,null,null,null,null,null,null,null,null,0,0]
[null,null,null,null,null,null,null,null,null,null,null,null,null,null,null,null,null,73,"لاعب 73",null,371153,"مدارس",2008,null,null,null,null,null,null,null,null,null,null,0,0]
[null,null,null,null,null,null,null,null,null,null,null,null,null,null,null,null,null,74,null,null,375995,"براعم أ",2007,null,null,null,null,null,null,null,null,null,null,0,0]
[null,null,null,null,null,null,null,null,null,null,null,null,null,null,null,null,null,75,"ﻋﻠﻲ ﺣﺴﻴﻦ ﻓﻀﻞ ﺍﻟﺤﺎﺟﻲ",null,359710,"مدارس",2008,null,null,null,null,null,null,null,null,null,null,0,0]
[null,null,null,null,null,null,null,null,null,null,null,null,null,null,null,null,null,76,"ﻋﻠﻲ ﻣﺤﻤﺪ ﻋﻠﻲ ﺍﻟﻨﻔﻴﻠﻲ",9,375787,"براعم أ",2006,null,null,null,null,null,null,null,null,null,null,0,0]
[null,null,null,null,null,null,null,null,null,null,null,null,null,null,null,null,null,77,"ﻋﻠﻲ ﻣﺤﻤﺪ ﻓﻼﺡ ﺍﻝ ﻏﺎﻧﻢ",null,371155,"براعم أ",2007,null,null,null,null,null,null,null,null,null,null,0,0]
[null,null,null,null,null,null,null,null,null,null,null,null,null,null,null,null,null,78,"ﻋﻠﻲ ﻳﻮﺳﻒ ﻋﻠﻲ ﺍﻝ ﻳﻮﺳﻒ",8,364822,"براعم أ",2006,null,null,null,null,null,null,null,null,null,null,0,0]
[null,null,null,null,null,null,null,null,null,null,null,null,null,null,null,null,null,79,"ﻗﺼﻲ ﻣﺤﻤﺪ ﻃﺎﻫﺮ ﺍﻝ ﺑﻮ ﺻﺎﻟﺢ",null,339607,"مدارس",2008,null,null,null,null,null,null,null,null,null,null,0,0]
[null,null,null,null,null,null,null,null,null,null,null,null,null,null,null,null,null,80,"ﻣﺤﻤﺪ ﺍﺣﻤﺪ ﺣﺒﻴﺐ ﺍﻟﻌﺮﺍﺩﻱ",null,366911,"براعم أ",2006,"حارس مرمى",null,null,null,null,null,null,null,null,null,0,0]
[null,null,null,null,null,null,null,null,null,null,null,null,null,null,null,null,null,81,"ﻣﺤﻤﺪ ﺣﺴﻴﻦ ﺣﺴﻦ ﺍﻝ ﻃﻼﻕ",30,366774,"براعم أ",2006,null,null,null,null,null,null,null,null,null,null,0,0]
[null,null,null,null,null,null,null,null,null,null,null,null,null,null,null,null,null,82,"ﻣﺤﻤﺪ ﺭﻣﺰﻱ ﻋﻠﻲ ﺍﻟﻬﻮﺩﺍﺭ",null,364473,"براعم أ",2006,null,null,null,null,null,null,null,null,null,null,0,0]
[null,null,null,null,null,null,null,null,null,null,null,null,null,null,null,null,null,83,"ﻣﺤﻤﺪ ﻋﻠﻲ ﺣﺴﻦ ﺍﻟﺴﺒﻊ",null,367707,"براعم أ",2006,null,null,null,null,null,null,null,null,null,null,0,0]
[null,null,null,null,null,null,null,null,null,null,null,null,null,null,null,null,null,84,"ﻣﺤﻤﺪ ﻋﻠﻲ ﻣﻬﺪﻱ ﻣﺤﻔﻮﻅ",null,375997,"براعم أ",2007,null,null,null,null,null,null,null,null,null,null,0,0]
[null,null,null,null,null,null,null,null,null,null,null,null,null,null,null,null,null,85,"ﻣﺤﻤﺪ ﻗﺎﺳﻢ ﻋﻠﻲ ﺍﻟﺤﻠﻴﻮ",22,375911,"براعم أ",2006,"حارس مرمى",null,null,null,null,null,null,null,null,null,0,0]
[null,null,null,null,null,null,null,null,null,null,null,null,null,null,null,null,null,86,"ﻣﺮﺗﻀﻲ ﻧﺎﺻﺮ ﻋﺒﺪﺍﻟﻠﻪ ﺍﻝ ﻋﺒﺎﺱ",14,371192,"براعم أ",2007,null,null,null,null,null,null,null,null,null,null,0,0]
[null,null,null,null,null,null,null,null,null,null,null,null,null,null,null,null,null,87,"ﻧﻮﺍﻑ ﻓﺘﺤﻲ ﻋﺒﺪﺍﻟﻠﻪ ﺍﻟﻤﻄﺮﻭﺩ",11,364820,"براعم أ",2006,null,null,null,null,null,null,null,null,null,null,0,0]
[null,null,null,null,null,null,null,null,null,null,null,null,null,null,null,null,null,88,"ﻫﺎﺩﻱ ﻫﺎﻧﻲ ﻋﺒﺪﺍﻟﻠﻪ ﺍﻝ ﺩﺭﻭﻳﺶ",77,366755,"براعم أ",2006,null,null,null,null,null,null,null,null,null,null,0,0]
[null,null,null,null,null,null,null,null,null,null,null,null,null,null,null,null,null,89,"ﻳﺰﻥ ﺷﺒﺮ ﻣﺼﻄﻔﻲ ﺍﻟﻌﻮﺍﻣﻲ",7,375714,"براعم أ",2007,null,null,null,null,null,null,null,null,null,null,0,0]
[null,null,null,null,null,null,null,null,null,null,null,null,null,null,null,null,null,90,null,null,null,null,null,null,null,null,null,null,null,null,null,null,null,0,0]
[null,null,null,null,null,null,null,null,null,null,null,null,null,null,null,null,null,91,null,null,null,null,null,null,null,null,null,null,null,null,null,null,null,0,0]
[null,null,null,null,null,null,null,null,null,null,null,null,null,null,null,null,null,92,null,null,null,null,null,null,null,null,null,null,null,null,null,null,null,0,0]
[null,null,null,null,null,null,null,null,null,null,null,null,null,null,null,null,null,93,null,null,null,null,null,null,null,null,null,null,null,null,null,null,null,0,0]

{"sheet":"Sheet2","index":6,"n_rows":189,"n_cols":22,"rows_kept":189,"cut":false,"hidden":false,"merged":[[0,1,0,3],[1,1,1,2],[2,1,2,2]]}
[]
[null,"اسم اللعبة: كرة القدم"]
[null,"الدرجــة:  البراعم"]
[]
["عمود مساعد","م"," رقم اللاعب  ","  اسم اللاعب ","الصفة","ميلاد اللاعب بالميلادي","المدرسة","الطول","الوزن"]
[{"$f":"IF(الاستئذانات!$C$9=Sheet2!$G$6:$G$145,COUNTIF(Sheet2!$G$6:G6,Sheet2!G6),\"\")","v":""},1,362716,"لاعب 1","لاعب","2004-05-06","مدارس المجموعة العالمية",null,null,null,null,null,null,null,null,{"$f":"OFFSET(G6,0,0,COUNTA(G:G),1)","v":"مدارس المجموعة العالمية"},null,null,null,null,null,{"$f":"IFERROR(INDEX($G$6:$G$206,MATCH(0,COUNTIF($V$5:V5,$G$6:$G$206),0)),\"\")","v":"مدارس المجموعة العالمية"}]
[{"$f":"IF(الاستئذانات!$C$9=Sheet2!$G$6:$G$145,COUNTIF(Sheet2!$G$6:G7,Sheet2!G7),\"\")","v":""},2,359189,"لاعب 2","لاعب","2004-04-15","مدرسة سيهات الثانوية",null,null,null,null,null,null,null,null,null,null,null,null,null,null,{"$f":"IFERROR(INDEX($G$6:$G$206,MATCH(0,COUNTIF($V$5:V6,$G$6:$G$206),0)),\"\")","v":"مدرسة سيهات الثانوية"}]
[{"$f":"IF(الاستئذانات!$C$9=Sheet2!$G$6:$G$145,COUNTIF(Sheet2!$G$6:G8,Sheet2!G8),\"\")","v":""},4,366800,"لاعب 3","لاعب","2005-12-17",null,null,null,null,null,null,null,null,null,null,null,null,null,null,null,{"$f":"IFERROR(INDEX($G$6:$G$206,MATCH(0,COUNTIF($V$5:V7,$G$6:$G$206),0)),\"\")","v":0}]
[{"$f":"IF(الاستئذانات!$C$9=Sheet2!$G$6:$G$145,COUNTIF(Sheet2!$G$6:G9,Sheet2!G9),\"\")","v":""},4,359251,"لاعب 4","لاعب","2005-10-25","مدرسة سيهات المتوسطة.",null,null,null,null,null,null,null,null,null,null,null,null,null,null,{"$f":"IFERROR(INDEX($G$6:$G$206,MATCH(0,COUNTIF($V$5:V8,$G$6:$G$206),0)),\"\")","v":"مدرسة سيهات المتوسطة."}]
[{"$f":"IF(الاستئذانات!$C$9=Sheet2!$G$6:$G$145,COUNTIF(Sheet2!$G$6:G10,Sheet2!G10),\"\")","v":""},5,366545,"لاعب 5","لاعب","2005-02-28","مدرسة سيهات الثانوية",null,null,null,null,null,null,null,null,null,null,null,null,null,null,{"$f":"IFERROR(INDEX($G$6:$G$206,MATCH(0,COUNTIF($V$5:V9,$G$6:$G$206),0)),\"\")","v":"المعهد الصناعي التقني"}]
[{"$f":"IF(الاستئذانات!$C$9=Sheet2!$G$6:$G$145,COUNTIF(Sheet2!$G$6:G11,Sheet2!G11),\"\")","v":""},6,343442,"لاعب 6","لاعب","2004-03-22","مدرسة سيهات الثانوية",null,null,null,null,null,null,null,null,null,null,null,null,null,null,{"$f":"IFERROR(INDEX($G$6:$G$206,MATCH(0,COUNTIF($V$5:V10,$G$6:$G$206),0)),\"\")","v":"مدرسة ابن القيم الثانوية"}]
[{"$f":"IF(الاستئذانات!$C$9=Sheet2!$G$6:$G$145,COUNTIF(Sheet2!$G$6:G12,Sheet2!G12),\"\")","v":""},7,350906,"لاعب 7","لاعب","2004-04-12","المعهد الصناعي التقني",null,null,null,null,null,null,null,null,null,null,null,null,null,null,{"$f":"IFERROR(INDEX($G$6:$G$206,MATCH(0,COUNTIF($V$5:V11,$G$6:$G$206),0)),\"\")","v":"مدرسة سعد بن عبادة المتوسطة"}]
[{"$f":"IF(الاستئذانات!$C$9=Sheet2!$G$6:$G$145,COUNTIF(Sheet2!$G$6:G13,Sheet2!G13),\"\")","v":""},8,358586,"لاعب 8","لاعب","2005-10-15",null,null,null,null,null,null,null,null,null,null,null,null,null,null,null,{"$f":"IFERROR(INDEX($G$6:$G$206,MATCH(0,COUNTIF($V$5:V12,$G$6:$G$206),0)),\"\")","v":"مدرسة المجيدية الثانوية"}]
[{"$f":"IF(الاستئذانات!$C$9=Sheet2!$G$6:$G$145,COUNTIF(Sheet2!$G$6:G14,Sheet2!G14),\"\")","v":""},9,359255,"لاعب 9","لاعب","2004-10-03","مدرسة سيهات الثانوية",null,null,null,null,null,null,null,null,null,null,null,null,null,null,{"$f":"IFERROR(INDEX($G$6:$G$206,MATCH(0,COUNTIF($V$5:V13,$G$6:$G$206),0)),\"\")","v":"مدرسة النجاح الثانوية"}]
[{"$f":"IF(الاستئذانات!$C$9=Sheet2!$G$6:$G$145,COUNTIF(Sheet2!$G$6:G15,Sheet2!G15),\"\")","v":""},10,358401,"لاعب 10","لاعب","2005-02-24",null,null,null,null,null,null,null,null,null,null,null,null,null,null,null,{"$f":"IFERROR(INDEX($G$6:$G$206,MATCH(0,COUNTIF($V$5:V14,$G$6:$G$206),0)),\"\")","v":"مدرسة العوامية الثانوية"}]
[{"$f":"IF(الاستئذانات!$C$9=Sheet2!$G$6:$G$145,COUNTIF(Sheet2!$G$6:G16,Sheet2!G16),\"\")","v":""},11,352264,"لاعب 11","لاعب","2004-08-09","مدرسة سيهات الثانوية",null,null,null,null,null,null,null,null,null,null,null,null,null,null,{"$f":"IFERROR(INDEX($G$6:$G$206,MATCH(0,COUNTIF($V$5:V15,$G$6:$G$206),0)),\"\")","v":"مدرسة الامام محمد بن سعود"}]
[{"$f":"IF(الاستئذانات!$C$9=Sheet2!$G$6:$G$145,COUNTIF(Sheet2!$G$6:G17,Sheet2!G17),\"\")","v":""},12,362715,"لاعب 12","لاعب","2004-08-14","مدرسة ابن القيم الثانوية",null,null,null,null,null,null,null,null,null,null,null,null,null,null,{"$f":"IFERROR(INDEX($G$6:$G$206,MATCH(0,COUNTIF($V$5:V16,$G$6:$G$206),0)),\"\")","v":"مدرسة مؤته المتوسطة"}]
[{"$f":"IF(الاستئذانات!$C$9=Sheet2!$G$6:$G$145,COUNTIF(Sheet2!$G$6:G18,Sheet2!G18),\"\")","v":""},13,366624,"لاعب 13","لاعب","2005-10-20","مدرسة سيهات المتوسطة.",null,null,null,null,null,null,null,null,null,null,null,null,null,null,{"$f":"IFERROR(INDEX($G$6:$G$206,MATCH(0,COUNTIF($V$5:V17,$G$6:$G$206),0)),\"\")","v":"مدرسة التهذيب الثانوية"}]
[{"$f":"IF(الاستئذانات!$C$9=Sheet2!$G$6:$G$145,COUNTIF(Sheet2!$G$6:G19,Sheet2!G19),\"\")","v":""},14,366904,"لاعب 14","لاعب","2005-10-13","مدرسة سعد بن عبادة المتوسطة",null,null,null,null,null,null,null,null,null,null,null,null,null,null,{"$f":"IFERROR(INDEX($G$6:$G$206,MATCH(0,COUNTIF($V$5:V18,$G$6:$G$206),0)),\"\")","v":"مدرسة الليث بن سعد المتوسطة"}]
[{"$f":"IF(الاستئذانات!$C$9=Sheet2!$G$6:$G$145,COUNTIF(Sheet2!$G$6:G20,Sheet2!G20),\"\")","v":""},15,344708,"لاعب 15","لاعب","2004-04-08","مدرسة ابن القيم الثانوية",null,null,null,null,null,null,null,null,null,null,null,null,null,null,{"$f":"IFERROR(INDEX($G$6:$G$206,MATCH(0,COUNTIF($V$5:V19,$G$6:$G$206),0)),\"\")","v":"مدرسة الطفيل بن عمر الثانوية"}]
[{"$f":"IF(الاستئذانات!$C$9=Sheet2!$G$6:$G$145,COUNTIF(Sheet2!$G$6:G21,Sheet2!G21),\"\")","v":""},16,371463,"لاعب 16","لاعب","2004-11-04","مدرسة ابن القيم الثانوية",null,null,null,null,null,null,null,null,null,null,null,null,null,null,{"$f":"IFERROR(INDEX($G$6:$G$206,MATCH(0,COUNTIF($V$5:V20,$G$6:$G$206),0)),\"\")","v":"مدرسة مكة الثانية"}]
[{"$f":"IF(الاستئذانات!$C$9=Sheet2!$G$6:$G$145,COUNTIF(Sheet2!$G$6:G22,Sheet2!G22),\"\")","v":""},17,374554,"لاعب 17","لاعب","2005-05-23","مدرسة المجيدية الثانوية",null,null,null,null,null,null,null,null,null,null,null,null,null,null,{"$f":"IFERROR(INDEX($G$6:$G$206,MATCH(0,COUNTIF($V$5:V21,$G$6:$G$206),0)),\"\")","v":"مدرسة سعد بن الحارث المتوسطة  "}]
[{"$f":"IF(الاستئذانات!$C$9=Sheet2!$G$6:$G$145,COUNTIF(Sheet2!$G$6:G23,Sheet2!G23),\"\")","v":""},18,358448,"لاعب 18","لاعب","2005-01-23","مدرسة النجاح الثانوية",null,null,null,null,null,null,null,null,null,null,null,null,null,null,{"$f":"IFERROR(INDEX($G$6:$G$206,MATCH(0,COUNTIF($V$5:V22,$G$6:$G$206),0)),\"\")","v":"مدرسة ابن القيم المتوسطة "}]
[{"$f":"IF(الاستئذانات!$C$9=Sheet2!$G$6:$G$145,COUNTIF(Sheet2!$G$6:G24,Sheet2!G24),\"\")","v":""},19,375034,"لاعب 19","لاعب","2004-03-27","مدرسة سيهات الثانوية",null,null,null,null,null,null,null,null,null,null,null,null,null,null,{"$f":"IFERROR(INDEX($G$6:$G$206,MATCH(0,COUNTIF($V$5:V23,$G$6:$G$206),0)),\"\")","v":"مدرسة التهذيب المتوسطة"}]
[{"$f":"IF(الاستئذانات!$C$9=Sheet2!$G$6:$G$145,COUNTIF(Sheet2!$G$6:G25,Sheet2!G25),\"\")","v":""},20,330936,"لاعب 20","لاعب","2004-03-29","مدرسة العوامية الثانوية",null,null,null,null,null,null,null,null,null,null,null,null,null,null,{"$f":"IFERROR(INDEX($G$6:$G$206,MATCH(0,COUNTIF($V$5:V24,$G$6:$G$206),0)),\"\")","v":"مدرسة عقبة بن عامر المتوسطة"}]
[{"$f":"IF(الاستئذانات!$C$9=Sheet2!$G$6:$G$145,COUNTIF(Sheet2!$G$6:G26,Sheet2!G26),\"\")","v":""},21,362712,"لاعب 21","لاعب","2004-07-01","مدرسة الامام محمد بن سعود",null,null,null,null,null,null,null,null,null,null,null,null,null,null,{"$f":"IFERROR(INDEX($G$6:$G$206,MATCH(0,COUNTIF($V$5:V25,$G$6:$G$206),0)),\"\")","v":"مدرسة سيهات المتوسطة"}]
[{"$f":"IF(الاستئذانات!$C$9=Sheet2!$G$6:$G$145,COUNTIF(Sheet2!$G$6:G27,Sheet2!G27),\"\")","v":""},22,374555,"لاعب 22","لاعب","2005-03-05","مدرسة سيهات المتوسطة.",null,null,null,null,null,null,null,null,null,null,null,null,null,null,{"$f":"IFERROR(INDEX($G$6:$G$206,MATCH(0,COUNTIF($V$5:V26,$G$6:$G$206),0)),\"\")","v":"مدرسة سعد بن الحارث المتوسطة"}]
[{"$f":"IF(الاستئذانات!$C$9=Sheet2!$G$6:$G$145,COUNTIF(Sheet2!$G$6:G28,Sheet2!G28),\"\")","v":""},23,343773,"لاعب 23","لاعب","2005-06-15",null,null,null,null,null,null,null,null,null,null,null,null,null,null,null,{"$f":"IFERROR(INDEX($G$6:$G$206,MATCH(0,COUNTIF($V$5:V27,$G$6:$G$206),0)),\"\")","v":"مدرسة ادماير العالمية"}]
[{"$f":"IF(الاستئذانات!$C$9=Sheet2!$G$6:$G$145,COUNTIF(Sheet2!$G$6:G29,Sheet2!G29),\"\")","v":""},24,375065,"لاعب 24","لاعب","2005-09-23",null,null,null,null,null,null,null,null,null,null,null,null,null,null,null,{"$f":"IFERROR(INDEX($G$6:$G$206,MATCH(0,COUNTIF($V$5:V28,$G$6:$G$206),0)),\"\")","v":"مدرسة صقليه المتوسطة"}]
[{"$f":"IF(الاستئذانات!$C$9=Sheet2!$G$6:$G$145,COUNTIF(Sheet2!$G$6:G30,Sheet2!G30),\"\")","v":""},25,364821,"لاعب 25","لاعب","2005-11-27",null,null,null,null,null,null,null,null,null,null,null,null,null,null,null,{"$f":"IFERROR(INDEX($G$6:$G$206,MATCH(0,COUNTIF($V$5:V29,$G$6:$G$206),0)),\"\")","v":"مدارس الحصان الاهلية"}]
[{"$f":"IF(الاستئذانات!$C$9=Sheet2!$G$6:$G$145,COUNTIF(Sheet2!$G$6:G31,Sheet2!G31),\"\")","v":""},26,370197,"لاعب 26","لاعب","2004-05-02",null,null,null,null,null,null,null,null,null,null,null,null,null,null,null,{"$f":"IFERROR(INDEX($G$6:$G$206,MATCH(0,COUNTIF($V$5:V30,$G$6:$G$206),0)),\"\")","v":""}]
[{"$f":"IF(الاستئذانات!$C$9=Sheet2!$G$6:$G$145,COUNTIF(Sheet2!$G$6:G32,Sheet2!G32),\"\")","v":""},27,375683,"لاعب 27","لاعب","2005-08-16","مدرسة مؤته المتوسطة",null,null,null,null,null,null,null,null,null,null,null,null,null,null,{"$f":"IFERROR(INDEX($G$6:$G$206,MATCH(0,COUNTIF($V$5:V31,$G$6:$G$206),0)),\"\")","v":""}]
[{"$f":"IF(الاستئذانات!$C$9=Sheet2!$G$6:$G$145,COUNTIF(Sheet2!$G$6:G33,Sheet2!G33),\"\")","v":""},28,377221,"لاعب 28","لاعب","2004-03-29","مدرسة التهذيب الثانوية",null,null,null,null,null,null,null,null,null,null,null,null,null,null,{"$f":"IFERROR(INDEX($G$6:$G$206,MATCH(0,COUNTIF($V$5:V32,$G$6:$G$206),0)),\"\")","v":""}]
[{"$f":"IF(الاستئذانات!$C$9=Sheet2!$G$6:$G$145,COUNTIF(Sheet2!$G$6:G34,Sheet2!G34),\"\")","v":""},29,375024,"لاعب 29","لاعب","2005-06-26","مدرسة مؤته المتوسطة",null,null,null,null,null,null,null,null,null,null,null,null,null,null,{"$f":"IFERROR(INDEX($G$6:$G$206,MATCH(0,COUNTIF($V$5:V33,$G$6:$G$206),0)),\"\")","v":""}]
[{"$f":"IF(الاستئذانات!$C$9=Sheet2!$G$6:$G$145,COUNTIF(Sheet2!$G$6:G35,Sheet2!G35),\"\")","v":""},30,366908,"لاعب 30","لاعب","2005-12-26","مدرسة سيهات الثانوية",null,null,null,null,null,null,null,null,null,null,null,null,null,null,{"$f":"IFERROR(INDEX($G$6:$G$206,MATCH(0,COUNTIF($V$5:V34,$G$6:$G$206),0)),\"\")","v":""}]
[{"$f":"IF(الاستئذانات!$C$9=Sheet2!$G$6:$G$145,COUNTIF(Sheet2!$G$6:G36,Sheet2!G36),\"\")","v":""},31,290959,"لاعب 31","لاعب","2004-01-31","مدرسة سيهات الثانوية",null,null,null,null,null,null,null,null,null,null,null,null,null,null,{"$f":"IFERROR(INDEX($G$6:$G$206,MATCH(0,COUNTIF($V$5:V35,$G$6:$G$206),0)),\"\")","v":""}]
[{"$f":"IF(الاستئذانات!$C$9=Sheet2!$G$6:$G$145,COUNTIF(Sheet2!$G$6:G37,Sheet2!G37),\"\")","v":""},32,374552,"لاعب 32","لاعب","2005-06-12","مدرسة سيهات المتوسطة.",null,null,null,null,null,null,null,null,null,null,null,null,null,null,{"$f":"IFERROR(INDEX($G$6:$G$206,MATCH(0,COUNTIF($V$5:V36,$G$6:$G$206),0)),\"\")","v":""}]
[{"$f":"IF(الاستئذانات!$C$9=Sheet2!$G$6:$G$145,COUNTIF(Sheet2!$G$6:G38,Sheet2!G38),\"\")","v":""},33,369729,"لاعب 33","لاعب","2005-03-19","مدرسة الليث بن سعد المتوسطة",null,null,null,null,null,null,null,null,null,null,null,null,null,null,{"$f":"IFERROR(INDEX($G$6:$G$206,MATCH(0,COUNTIF($V$5:V37,$G$6:$G$206),0)),\"\")","v":""}]
[{"$f":"IF(الاستئذانات!$C$9=Sheet2!$G$6:$G$145,COUNTIF(Sheet2!$G$6:G39,Sheet2!G39),\"\")","v":""},34,366793,"لاعب 34","لاعب","2005-10-02",null,null,null,null,null,null,null,null,null,null,null,null,null,null,null,{"$f":"IFERROR(INDEX($G$6:$G$206,MATCH(0,COUNTIF($V$5:V38,$G$6:$G$206),0)),\"\")","v":""}]
[{"$f":"IF(الاستئذانات!$C$9=Sheet2!$G$6:$G$145,COUNTIF(Sheet2!$G$6:G40,Sheet2!G40),\"\")","v":""},35,362691,"لاعب 35","لاعب","2004-06-14","مدرسة ابن القيم الثانوية",null,null,null,null,null,null,null,null,null,null,null,null,null,null,{"$f":"IFERROR(INDEX($G$6:$G$206,MATCH(0,COUNTIF($V$5:V39,$G$6:$G$206),0)),\"\")","v":""}]
[{"$f":"IF(الاستئذانات!$C$9=Sheet2!$G$6:$G$145,COUNTIF(Sheet2!$G$6:G41,Sheet2!G41),\"\")","v":""},36,343070,"لاعب 36","لاعب","2004-06-23","مدرسة الطفيل بن عمر الثانوية",null,null,null,null,null,null,null,null,null,null,null,null,null,null,{"$f":"IFERROR(INDEX($G$6:$G$206,MATCH(0,COUNTIF($V$5:V40,$G$6:$G$206),0)),\"\")","v":""}]
[{"$f":"IF(الاستئذانات!$C$9=Sheet2!$G$6:$G$145,COUNTIF(Sheet2!$G$6:G42,Sheet2!G42),\"\")","v":""},37,371926,"لاعب 37","لاعب","2004-06-16","مدرسة ابن القيم الثانوية",null,null,null,null,null,null,null,null,null,null,null,null,null,null,{"$f":"IFERROR(INDEX($G$6:$G$206,MATCH(0,COUNTIF($V$5:V41,$G$6:$G$206),0)),\"\")","v":""}]
[{"$f":"IF(الاستئذانات!$C$9=Sheet2!$G$6:$G$145,COUNTIF(Sheet2!$G$6:G43,Sheet2!G43),\"\")","v":""},38,358455,"لاعب 38","لاعب","2004-07-21","مدرسة النجاح الثانوية",null,null,null,null,null,null,null,null,null,null,null,null,null,null,{"$f":"IFERROR(INDEX($G$6:$G$206,MATCH(0,COUNTIF($V$5:V42,$G$6:$G$206),0)),\"\")","v":""}]
[{"$f":"IF(الاستئذانات!$C$9=Sheet2!$G$6:$G$145,COUNTIF(Sheet2!$G$6:G44,Sheet2!G44),\"\")","v":""},39,359827,"لاعب 39","لاعب","2004-02-14",null,null,null,null,null,null,null,null,null,null,null,null,null,null,null,{"$f":"IFERROR(INDEX($G$6:$G$206,MATCH(0,COUNTIF($V$5:V43,$G$6:$G$206),0)),\"\")","v":""}]
[{"$f":"IF(الاستئذانات!$C$9=Sheet2!$G$6:$G$145,COUNTIF(Sheet2!$G$6:G45,Sheet2!G45),\"\")","v":""},40,362694,"لاعب 40","لاعب","2004-08-13",null,null,null,null,null,null,null,null,null,null,null,null,null,null,null,{"$f":"IFERROR(INDEX($G$6:$G$206,MATCH(0,COUNTIF($V$5:V44,$G$6:$G$206),0)),\"\")","v":""}]
[{"$f":"IF(الاستئذانات!$C$9=Sheet2!$G$6:$G$145,COUNTIF(Sheet2!$G$6:G46,Sheet2!G46),\"\")","v":""},41,364474,"لاعب 41","لاعب","2005-07-06",null,null,null,null,null,null,null,null,null,null,null,null,null,null,null,{"$f":"IFERROR(INDEX($G$6:$G$206,MATCH(0,COUNTIF($V$5:V45,$G$6:$G$206),0)),\"\")","v":""}]
[{"$f":"IF(الاستئذانات!$C$9=Sheet2!$G$6:$G$145,COUNTIF(Sheet2!$G$6:G47,Sheet2!G47),\"\")","v":""},42,358246,"لاعب 42","لاعب","2004-04-18","مدرسة الطفيل بن عمر الثانوية",null,null,null,null,null,null,null,null,null,null,null,null,null,null,{"$f":"IFERROR(INDEX($G$6:$G$206,MATCH(0,COUNTIF($V$5:V46,$G$6:$G$206),0)),\"\")","v":""}]
[{"$f":"IF(الاستئذانات!$C$9=Sheet2!$G$6:$G$145,COUNTIF(Sheet2!$G$6:G48,Sheet2!G48),\"\")","v":""},43,366912,"لاعب 43","لاعب","2005-10-29",null,null,null,null,null,null,null,null,null,null,null,null,null,null,null,{"$f":"IFERROR(INDEX($G$6:$G$206,MATCH(0,COUNTIF($V$5:V47,$G$6:$G$206),0)),\"\")","v":""}]
[{"$f":"IF(الاستئذانات!$C$9=Sheet2!$G$6:$G$145,COUNTIF(Sheet2!$G$6:G49,Sheet2!G49),\"\")","v":""},44,359185,"لاعب 44","لاعب","2004-09-21",null,null,null,null,null,null,null,null,null,null,null,null,null,null,null,{"$f":"IFERROR(INDEX($G$6:$G$206,MATCH(0,COUNTIF($V$5:V48,$G$6:$G$206),0)),\"\")","v":""}]
[{"$f":"IF(الاستئذانات!$C$9=Sheet2!$G$6:$G$145,COUNTIF(Sheet2!$G$6:G50,Sheet2!G50),\"\")","v":""},45,367726,"لاعب 45","لاعب","2005-07-24",null,null,null,null,null,null,null,null,null,null,null,null,null,null,null,{"$f":"IFERROR(INDEX($G$6:$G$206,MATCH(0,COUNTIF($V$5:V49,$G$6:$G$206),0)),\"\")","v":""}]
[{"$f":"IF(الاستئذانات!$C$9=Sheet2!$G$6:$G$145,COUNTIF(Sheet2!$G$6:G51,Sheet2!G51),\"\")","v":""},46,374553,"لاعب 46","لاعب","2005-04-17","مدرسة مؤته المتوسطة",null,null,null,null,null,null,null,null,null,null,null,null,null,null,{"$f":"IFERROR(INDEX($G$6:$G$206,MATCH(0,COUNTIF($V$5:V50,$G$6:$G$206),0)),\"\")","v":""}]
[{"$f":"IF(الاستئذانات!$C$9=Sheet2!$G$6:$G$145,COUNTIF(Sheet2!$G$6:G52,Sheet2!G52),\"\")","v":""},47,361632,"لاعب 47","لاعب","2005-05-06",null,null,null,null,null,null,null,null,null,null,null,null,null,null,null,{"$f":"IFERROR(INDEX($G$6:$G$206,MATCH(0,COUNTIF($V$5:V51,$G$6:$G$206),0)),\"\")","v":""}]
[{"$f":"IF(الاستئذانات!$C$9=Sheet2!$G$6:$G$145,COUNTIF(Sheet2!$G$6:G53,Sheet2!G53),\"\")","v":""},48,358561,"لاعب 48","لاعب","2004-12-03","مدرسة سيهات الثانوية",null,null,null,null,null,null,null,null,null,null,null,null,null,null,{"$f":"IFERROR(INDEX($G$6:$G$206,MATCH(0,COUNTIF($V$5:V52,$G$6:$G$206),0)),\"\")","v":""}]
[{"$f":"IF(الاستئذانات!$C$9=Sheet2!$G$6:$G$145,COUNTIF(Sheet2!$G$6:G54,Sheet2!G54),\"\")","v":""},49,375039,"لاعب 49","لاعب","2004-03-27","مدرسة مكة الثانية",null,null,null,null,null,null,null,null,null,null,null,null,null,null,{"$f":"IFERROR(INDEX($G$6:$G$206,MATCH(0,COUNTIF($V$5:V53,$G$6:$G$206),0)),\"\")","v":""}]
[{"$f":"IF(الاستئذانات!$C$9=Sheet2!$G$6:$G$145,COUNTIF(Sheet2!$G$6:G55,Sheet2!G55),\"\")","v":""},50,359187,"لاعب 50","الصفة","2004-06-10",null,null,null,null,null,null,null,null,null,null,null,null,null,null,null,{"$f":"IFERROR(INDEX($G$6:$G$206,MATCH(0,COUNTIF($V$5:V54,$G$6:$G$206),0)),\"\")","v":""}]
[{"$f":"IF(الاستئذانات!$C$9=Sheet2!$G$6:$G$145,COUNTIF(Sheet2!$G$6:G56,Sheet2!G56),\"\")","v":""},51,318204,"لاعب 51","لاعب","2004-08-20",null,null,null,null,null,null,null,null,null,null,null,null,null,null,null,{"$f":"IFERROR(INDEX($G$6:$G$206,MATCH(0,COUNTIF($V$5:V55,$G$6:$G$206),0)),\"\")","v":""}]
[{"$f":"IF(الاستئذانات!$C$9=Sheet2!$G$6:$G$145,COUNTIF(Sheet2!$G$6:G57,Sheet2!G57),\"\")","v":""},52,378657,"لاعب 52","لاعب","2006-05-26","مدرسة سعد بن الحارث المتوسطة  "]
[{"$f":"IF(الاستئذانات!$C$9=Sheet2!$G$6:$G$145,COUNTIF(Sheet2!$G$6:G58,Sheet2!G58),\"\")","v":""},53,366770,"لاعب 53","لاعب","2006-03-14","مدرسة ابن القيم المتوسطة ",null,null,null,null,null,null,null,null,null,null,null,null,null,null,{"$f":"IFERROR(INDEX($G$6:$G$206,MATCH(0,COUNTIF($V$5:V56,$G$6:$G$206),0)),\"\")","v":""}]
[{"$f":"IF(الاستئذانات!$C$9=Sheet2!$G$6:$G$145,COUNTIF(Sheet2!$G$6:G59,Sheet2!G59),\"\")","v":""},54,371200,"لاعب 54","لاعب","2007-05-14",null,null,null,null,null,null,null,null,null,null,null,null,null,null,null,{"$f":"IFERROR(INDEX($G$6:$G$206,MATCH(0,COUNTIF($V$5:V58,$G$6:$G$206),0)),\"\")","v":""}]
[{"$f":"IF(الاستئذانات!$C$9=Sheet2!$G$6:$G$145,COUNTIF(Sheet2!$G$6:G60,Sheet2!G60),\"\")","v":""},55,290325,"لاعب 55","لاعب","2006-03-18","مدرسة سعد بن الحارث المتوسطة  ",null,null,null,null,null,null,null,null,null,null,null,null,null,null,{"$f":"IFERROR(INDEX($G$6:$G$206,MATCH(0,COUNTIF($V$5:V59,$G$6:$G$206),0)),\"\")","v":""}]
[{"$f":"IF(الاستئذانات!$C$9=Sheet2!$G$6:$G$145,COUNTIF(Sheet2!$G$6:G61,Sheet2!G61),\"\")","v":""},56,371199,"لاعب 56","لاعب","2008-01-18","مدرسة سعد بن الحارث المتوسطة  ",null,null,null,null,null,null,null,null,null,null,null,null,null,null,{"$f":"IFERROR(INDEX($G$6:$G$206,MATCH(0,COUNTIF($V$5:V60,$G$6:$G$206),0)),\"\")","v":""}]
[{"$f":"IF(الاستئذانات!$C$9=Sheet2!$G$6:$G$145,COUNTIF(Sheet2!$G$6:G62,Sheet2!G62),\"\")","v":""},57,375020,"لاعب 57","لاعب","2007-05-05","مدرسة التهذيب المتوسطة",null,null,null,null,null,null,null,null,null,null,null,null,null,null,{"$f":"IFERROR(INDEX($G$6:$G$206,MATCH(0,COUNTIF($V$5:V61,$G$6:$G$206),0)),\"\")","v":""}]
[{"$f":"IF(الاستئذانات!$C$9=Sheet2!$G$6:$G$145,COUNTIF(Sheet2!$G$6:G63,Sheet2!G63),\"\")","v":""},58,360805,"لاعب 58","لاعب","2008-01-02","مدرسة سعد بن الحارث المتوسطة  ",null,null,null,null,null,null,null,null,null,null,null,null,null,null,{"$f":"IFERROR(INDEX($G$6:$G$206,MATCH(0,COUNTIF($V$5:V62,$G$6:$G$206),0)),\"\")","v":""}]
[{"$f":"IF(الاستئذانات!$C$9=Sheet2!$G$6:$G$145,COUNTIF(Sheet2!$G$6:G64,Sheet2!G64),\"\")","v":""},59,366548,"لاعب 59","لاعب","2007-06-21",null,null,null,null,null,null,null,null,null,null,null,null,null,null,null,{"$f":"IFERROR(INDEX($G$6:$G$206,MATCH(0,COUNTIF($V$5:V63,$G$6:$G$206),0)),\"\")","v":""}]
[{"$f":"IF(الاستئذانات!$C$9=Sheet2!$G$6:$G$145,COUNTIF(Sheet2!$G$6:G65,Sheet2!G65),\"\")","v":""},60,358588,"لاعب 60","لاعب","2006-02-02","مدرسة عقبة بن عامر المتوسطة",null,null,null,null,null,null,null,null,null,null,null,null,null,null,{"$f":"IFERROR(INDEX($G$6:$G$206,MATCH(0,COUNTIF($V$5:V64,$G$6:$G$206),0)),\"\")","v":""}]
[{"$f":"IF(الاستئذانات!$C$9=Sheet2!$G$6:$G$145,COUNTIF(Sheet2!$G$6:G66,Sheet2!G66),\"\")","v":""},61,372096,"لاعب 61","لاعب","2007-06-23","مدرسة سيهات المتوسطة",null,null,null,null,null,null,null,null,null,null,null,null,null,null,{"$f":"IFERROR(INDEX($G$6:$G$206,MATCH(0,COUNTIF($V$5:V65,$G$6:$G$206),0)),\"\")","v":""}]
[{"$f":"IF(الاستئذانات!$C$9=Sheet2!$G$6:$G$145,COUNTIF(Sheet2!$G$6:G67,Sheet2!G67),\"\")","v":""},62,371191,"لاعب 62","لاعب","2007-10-13","مدرسة سعد بن الحارث المتوسطة",null,null,null,null,null,null,null,null,null,null,null,null,null,null,{"$f":"IFERROR(INDEX($G$6:$G$206,MATCH(0,COUNTIF($V$5:V66,$G$6:$G$206),0)),\"\")","v":""}]
[{"$f":"IF(الاستئذانات!$C$9=Sheet2!$G$6:$G$145,COUNTIF(Sheet2!$G$6:G68,Sheet2!G68),\"\")","v":""},63,359182,"لاعب 63","لاعب","2006-09-23","مدرسة التهذيب المتوسطة",null,null,null,null,null,null,null,null,null,null,null,null,null,null,{"$f":"IFERROR(INDEX($G$6:$G$206,MATCH(0,COUNTIF($V$5:V67,$G$6:$G$206),0)),\"\")","v":""}]
[{"$f":"IF(الاستئذانات!$C$9=Sheet2!$G$6:$G$145,COUNTIF(Sheet2!$G$6:G69,Sheet2!G69),\"\")","v":""},64,359825,"لاعب 64","لاعب","2006-10-20","مدرسة سعد بن الحارث المتوسطة",null,null,null,null,null,null,null,null,null,null,null,null,null,null,{"$f":"IFERROR(INDEX($G$6:$G$206,MATCH(0,COUNTIF($V$5:V68,$G$6:$G$206),0)),\"\")","v":""}]
[{"$f":"IF(الاستئذانات!$C$9=Sheet2!$G$6:$G$145,COUNTIF(Sheet2!$G$6:G70,Sheet2!G70),\"\")","v":""},65,375044,"لاعب 65","لاعب","2007-12-26","مدرسة سعد بن الحارث المتوسطة",null,null,null,null,null,null,null,null,null,null,null,null,null,null,{"$f":"IFERROR(INDEX($G$6:$G$206,MATCH(0,COUNTIF($V$5:V69,$G$6:$G$206),0)),\"\")","v":""}]
[{"$f":"IF(الاستئذانات!$C$9=Sheet2!$G$6:$G$145,COUNTIF(Sheet2!$G$6:G71,Sheet2!G71),\"\")","v":""},66,369735,"لاعب 66","لاعب","2006-09-12","مدرسة ابن القيم المتوسطة ",null,null,null,null,null,null,null,null,null,null,null,null,null,null,{"$f":"IFERROR(INDEX($G$6:$G$206,MATCH(0,COUNTIF($V$5:V70,$G$6:$G$206),0)),\"\")","v":""}]
[{"$f":"IF(الاستئذانات!$C$9=Sheet2!$G$6:$G$145,COUNTIF(Sheet2!$G$6:G72,Sheet2!G72),\"\")","v":""},67,374594,"لاعب 67","لاعب","2006-02-16","مدرسة التهذيب المتوسطة",null,null,null,null,null,null,null,null,null,null,null,null,null,null,{"$f":"IFERROR(INDEX($G$6:$G$206,MATCH(0,COUNTIF($V$5:V71,$G$6:$G$206),0)),\"\")","v":""}]
[{"$f":"IF(الاستئذانات!$C$9=Sheet2!$G$6:$G$145,COUNTIF(Sheet2!$G$6:G73,Sheet2!G73),\"\")","v":""},68,377210,"لاعب 68","لاعب","2006-03-21","مدرسة سيهات المتوسطة",null,null,null,null,null,null,null,null,null,null,null,null,null,null,{"$f":"IFERROR(INDEX($G$6:$G$206,MATCH(0,COUNTIF($V$5:V72,$G$6:$G$206),0)),\"\")","v":""}]
[{"$f":"IF(الاستئذانات!$C$9=Sheet2!$G$6:$G$145,COUNTIF(Sheet2!$G$6:G74,Sheet2!G74),\"\")","v":""},69,375685,"لاعب 69","لاعب","2006-10-28","مدرسة ادماير العالمية",null,null,null,null,null,null,null,null,null,null,null,null,null,null,{"$f":"IFERROR(INDEX($G$6:$G$206,MATCH(0,COUNTIF($V$5:V73,$G$6:$G$206),0)),\"\")","v":""}]
[{"$f":"IF(الاستئذانات!$C$9=Sheet2!$G$6:$G$145,COUNTIF(Sheet2!$G$6:G75,Sheet2!G75),\"\")","v":""},70,370568,"لاعب 70","لاعب","2006-06-18","مدرسة ابن القيم المتوسطة ",null,null,null,null,null,null,null,null,null,null,null,null,null,null,{"$f":"IFERROR(INDEX($G$6:$G$206,MATCH(0,COUNTIF($V$5:V74,$G$6:$G$206),0)),\"\")","v":""}]
[{"$f":"IF(الاستئذانات!$C$9=Sheet2!$G$6:$G$145,COUNTIF(Sheet2!$G$6:G76,Sheet2!G76),\"\")","v":1},71,367728,"لاعب 71","لاعب","2006-08-20","مدرسة صقليه المتوسطة",null,null,null,null,null,null,null,null,null,null,null,null,null,null,{"$f":"IFERROR(INDEX($G$6:$G$206,MATCH(0,COUNTIF($V$5:V75,$G$6:$G$206),0)),\"\")","v":""}]
[{"$f":"IF(الاستئذانات!$C$9=Sheet2!$G$6:$G$145,COUNTIF(Sheet2!$G$6:G77,Sheet2!G77),\"\")","v":""},72,371202,"لاعب 72","لاعب","2008-01-05",null,null,null,null,null,null,null,null,null,null,null,null,null,null,null,{"$f":"IFERROR(INDEX($G$6:$G$206,MATCH(0,COUNTIF($V$5:V76,$G$6:$G$206),0)),\"\")","v":""}]
[{"$f":"IF(الاستئذانات!$C$9=Sheet2!$G$6:$G$145,COUNTIF(Sheet2!$G$6:G78,Sheet2!G78),\"\")","v":""},73,371153,"لاعب 73","لاعب","2008-01-14",null,null,null,null,null,null,null,null,null,null,null,null,null,null,null,{"$f":"IFERROR(INDEX($G$6:$G$206,MATCH(0,COUNTIF($V$5:V77,$G$6:$G$206),0)),\"\")","v":""}]
[{"$f":"IF(الاستئذانات!$C$9=Sheet2!$G$6:$G$145,COUNTIF(Sheet2!$G$6:G79,Sheet2!G79),\"\")","v":""},74,375995,"لاعب 74","لاعب","2007-02-26","مدرسة سيهات المتوسطة",null,null,null,null,null,null,null,null,null,null,null,null,null,null,{"$f":"IFERROR(INDEX($G$6:$G$206,MATCH(0,COUNTIF($V$5:V78,$G$6:$G$206),0)),\"\")","v":""}]
[{"$f":"IF(الاستئذانات!$C$9=Sheet2!$G$6:$G$145,COUNTIF(Sheet2!$G$6:G80,Sheet2!G80),\"\")","v":""},75,359710,"لاعب 75","لاعب","2008-10-13",null,null,null,null,null,null,null,null,null,null,null,null,null,null,null,{"$f":"IFERROR(INDEX($G$6:$G$206,MATCH(0,COUNTIF($V$5:V79,$G$6:$G$206),0)),\"\")","v":""}]
[{"$f":"IF(الاستئذانات!$C$9=Sheet2!$G$6:$G$145,COUNTIF(Sheet2!$G$6:G81,Sheet2!G81),\"\")","v":2},76,375787,"لاعب 76","لاعب","2006-03-16","مدرسة صقليه المتوسطة",null,null,null,null,null,null,null,null,null,null,null,null,null,null,{"$f":"IFERROR(INDEX($G$6:$G$206,MATCH(0,COUNTIF($V$5:V80,$G$6:$G$206),0)),\"\")","v":""}]
[{"$f":"IF(الاستئذانات!$C$9=Sheet2!$G$6:$G$145,COUNTIF(Sheet2!$G$6:G82,Sheet2!G82),\"\")","v":""},77,371155,"لاعب 77","لاعب","2007-03-25","مدرسة سيهات المتوسطة",null,null,null,null,null,null,null,null,null,null,null,null,null,null,{"$f":"IFERROR(INDEX($G$6:$G$206,MATCH(0,COUNTIF($V$5:V81,$G$6:$G$206),0)),\"\")","v":""}]
[{"$f":"IF(الاستئذانات!$C$9=Sheet2!$G$6:$G$145,COUNTIF(Sheet2!$G$6:G83,Sheet2!G83),\"\")","v":""},78,364822,"لاعب 78","لاعب","2006-12-16","مدرسة سيهات المتوسطة",null,null,null,null,null,null,null,null,null,null,null,null,null,null,{"$f":"IFERROR(INDEX($G$6:$G$206,MATCH(0,COUNTIF($V$5:V82,$G$6:$G$206),0)),\"\")","v":""}]
[{"$f":"IF(الاستئذانات!$C$9=Sheet2!$G$6:$G$145,COUNTIF(Sheet2!$G$6:G84,Sheet2!G84),\"\")","v":""},79,339607,"لاعب 79","لاعب","2008-03-10",null,null,null,null,null,null,null,null,null,null,null,null,null,null,null,{"$f":"IFERROR(INDEX($G$6:$G$206,MATCH(0,COUNTIF($V$5:V83,$G$6:$G$206),0)),\"\")","v":""}]
[{"$f":"IF(الاستئذانات!$C$9=Sheet2!$G$6:$G$145,COUNTIF(Sheet2!$G$6:G85,Sheet2!G85),\"\")","v":""},80,366911,"لاعب 80","لاعب","2006-06-02",null,null,null,null,null,null,null,null,null,null,null,null,null,null,null,{"$f":"IFERROR(INDEX($G$6:$G$206,MATCH(0,COUNTIF($V$5:V84,$G$6:$G$206),0)),\"\")","v":""}]
[{"$f":"IF(الاستئذانات!$C$9=Sheet2!$G$6:$G$145,COUNTIF(Sheet2!$G$6:G86,Sheet2!G86),\"\")","v":""},81,366774,"لاعب 81","لاعب","2006-04-26","مدرسة سعد بن عبادة المتوسطة",null,null,null,null,null,null,null,null,null,null,null,null,null,null,{"$f":"IFERROR(INDEX($G$6:$G$206,MATCH(0,COUNTIF($V$5:V85,$G$6:$G$206),0)),\"\")","v":""}]
[{"$f":"IF(الاستئذانات!$C$9=Sheet2!$G$6:$G$145,COUNTIF(Sheet2!$G$6:G87,Sheet2!G87),\"\")","v":""},82,364473,"لاعب 82","لاعب","2006-07-13",null,null,null,null,null,null,null,null,null,null,null,null,null,null,null,{"$f":"IFERROR(INDEX($G$6:$G$206,MATCH(0,COUNTIF($V$5:V86,$G$6:$G$206),0)),\"\")","v":""}]
[{"$f":"IF(الاستئذانات!$C$9=Sheet2!$G$6:$G$145,COUNTIF(Sheet2!$G$6:G88,Sheet2!G88),\"\")","v":""},83,367707,"لاعب 83","لاعب","2006-08-11","مدرسة ابن القيم المتوسطة ",null,null,null,null,null,null,null,null,null,null,null,null,null,null,{"$f":"IFERROR(INDEX($G$6:$G$206,MATCH(0,COUNTIF($V$5:V87,$G$6:$G$206),0)),\"\")","v":""}]
[{"$f":"IF(الاستئذانات!$C$9=Sheet2!$G$6:$G$145,COUNTIF(Sheet2!$G$6:G89,Sheet2!G89),\"\")","v":""},84,375997,"لاعب 84","لاعب","2007-02-12",null,null,null,null,null,null,null,null,null,null,null,null,null,null,null,{"$f":"IFERROR(INDEX($G$6:$G$206,MATCH(0,COUNTIF($V$5:V88,$G$6:$G$206),0)),\"\")","v":""}]
[{"$f":"IF(الاستئذانات!$C$9=Sheet2!$G$6:$G$145,COUNTIF(Sheet2!$G$6:G90,Sheet2!G90),\"\")","v":3},85,375911,"لاعب 85","لاعب","2006-08-14","مدرسة صقليه المتوسطة",null,null,null,null,null,null,null,null,null,null,null,null,null,null,{"$f":"IFERROR(INDEX($G$6:$G$206,MATCH(0,COUNTIF($V$5:V89,$G$6:$G$206),0)),\"\")","v":""}]
[{"$f":"IF(الاستئذانات!$C$9=Sheet2!$G$6:$G$145,COUNTIF(Sheet2!$G$6:G91,Sheet2!G91),\"\")","v":""},86,371192,"لاعب 86","لاعب","2007-05-13","مدرسة سيهات المتوسطة",null,null,null,null,null,null,null,null,null,null,null,null,null,null,{"$f":"IFERROR(INDEX($G$6:$G$206,MATCH(0,COUNTIF($V$5:V90,$G$6:$G$206),0)),\"\")","v":""}]
[{"$f":"IF(الاستئذانات!$C$9=Sheet2!$G$6:$G$145,COUNTIF(Sheet2!$G$6:G92,Sheet2!G92),\"\")","v":""},87,364820,"لاعب 87","لاعب","2006-03-06","مدارس الحصان الاهلية",null,null,null,null,null,null,null,null,null,null,null,null,null,null,{"$f":"IFERROR(INDEX($G$6:$G$206,MATCH(0,COUNTIF($V$5:V91,$G$6:$G$206),0)),\"\")","v":""}]
[{"$f":"IF(الاستئذانات!$C$9=Sheet2!$G$6:$G$145,COUNTIF(Sheet2!$G$6:G93,Sheet2!G93),\"\")","v":""},88,366755,"لاعب 88","لاعب","2006-10-28","مدرسة سيهات المتوسطة",null,null,null,null,null,null,null,null,null,null,null,null,null,null,{"$f":"IFERROR(INDEX($G$6:$G$206,MATCH(0,COUNTIF($V$5:V92,$G$6:$G$206),0)),\"\")","v":""}]
[{"$f":"IF(الاستئذانات!$C$9=Sheet2!$G$6:$G$145,COUNTIF(Sheet2!$G$6:G94,Sheet2!G94),\"\")","v":""},89,375714,"لاعب 89","لاعب","2007-02-05","مدرسة التهذيب المتوسطة",null,null,null,null,null,null,null,null,null,null,null,null,null,null,{"$f":"IFERROR(INDEX($G$6:$G$206,MATCH(0,COUNTIF($V$5:V93,$G$6:$G$206),0)),\"\")","v":""}]
[{"$f":"IF(الاستئذانات!$C$9=Sheet2!$G$6:$G$145,COUNTIF(Sheet2!$G$6:G95,Sheet2!G95),\"\")","v":""},null,null,null,null,null,null,null,null,null,null,null,null,null,null,null,null,null,null,null,null,{"$f":"IFERROR(INDEX($G$6:$G$206,MATCH(0,COUNTIF($V$5:V94,$G$6:$G$206),0)),\"\")","v":""}]
[{"$f":"IF(الاستئذانات!$C$9=Sheet2!$G$6:$G$145,COUNTIF(Sheet2!$G$6:G96,Sheet2!G96),\"\")","v":""},null,null,null,null,null,null,null,null,null,null,null,null,null,null,null,null,null,null,null,null,{"$f":"IFERROR(INDEX($G$6:$G$206,MATCH(0,COUNTIF($V$5:V95,$G$6:$G$206),0)),\"\")","v":""}]
[{"$f":"IF(الاستئذانات!$C$9=Sheet2!$G$6:$G$145,COUNTIF(Sheet2!$G$6:G97,Sheet2!G97),\"\")","v":""},null,null,null,null,null,null,null,null,null,null,null,null,null,null,null,null,null,null,null,null,{"$f":"IFERROR(INDEX($G$6:$G$206,MATCH(0,COUNTIF($V$5:V96,$G$6:$G$206),0)),\"\")","v":""}]
[{"$f":"IF(الاستئذانات!$C$9=Sheet2!$G$6:$G$145,COUNTIF(Sheet2!$G$6:G98,Sheet2!G98),\"\")","v":""},null,null,null,null,null,null,null,null,null,null,null,null,null,null,null,null,null,null,null,null,{"$f":"IFERROR(INDEX($G$6:$G$206,MATCH(0,COUNTIF($V$5:V97,$G$6:$G$206),0)),\"\")","v":""}]
[{"$f":"IF(الاستئذانات!$C$9=Sheet2!$G$6:$G$145,COUNTIF(Sheet2!$G$6:G99,Sheet2!G99),\"\")","v":""},null,null,null,null,null,null,null,null,null,null,null,null,null,null,null,null,null,null,null,null,{"$f":"IFERROR(INDEX($G$6:$G$206,MATCH(0,COUNTIF($V$5:V98,$G$6:$G$206),0)),\"\")","v":""}]
[{"$f":"IF(الاستئذانات!$C$9=Sheet2!$G$6:$G$145,COUNTIF(Sheet2!$G$6:G100,Sheet2!G100),\"\")","v":""},null,null,null,null,null,null,null,null,null,null,null,null,null,null,null,null,null,null,null,null,{"$f":"IFERROR(INDEX($G$6:$G$206,MATCH(0,COUNTIF($V$5:V99,$G$6:$G$206),0)),\"\")","v":""}]
[{"$f":"IF(الاستئذانات!$C$9=Sheet2!$G$6:$G$145,COUNTIF(Sheet2!$G$6:G101,Sheet2!G101),\"\")","v":""},null,null,null,null,null,null,null,null,null,null,null,null,null,null,null,null,null,null,null,null,{"$f":"IFERROR(INDEX($G$6:$G$206,MATCH(0,COUNTIF($V$5:V100,$G$6:$G$206),0)),\"\")","v":""}]
[null,null,null,null,null,null,null,null,null,null,null,null,null,null,null,null,null,null,null,null,null,{"$f":"IFERROR(INDEX($G$6:$G$206,MATCH(0,COUNTIF($V$5:V101,$G$6:$G$206),0)),\"\")","v":""}]
[null,null,null,null,null,null,null,null,null,null,null,null,null,null,null,null,null,null,null,null,null,{"$f":"IFERROR(INDEX($G$6:$G$206,MATCH(0,COUNTIF($V$5:V102,$G$6:$G$206),0)),\"\")","v":""}]
[null,null,null,null,null,null,null,null,null,null,null,null,null,null,null,null,null,null,null,null,null,{"$f":"IFERROR(INDEX($G$6:$G$206,MATCH(0,COUNTIF($V$5:V103,$G$6:$G$206),0)),\"\")","v":""}]
[null,null,null,null,null,null,null,null,null,null,null,null,null,null,null,null,null,null,null,null,null,{"$f":"IFERROR(INDEX($G$6:$G$206,MATCH(0,COUNTIF($V$5:V104,$G$6:$G$206),0)),\"\")","v":""}]
[null,null,null,null,null,null,null,null,null,null,null,null,null,null,null,null,null,null,null,null,null,{"$f":"IFERROR(INDEX($G$6:$G$206,MATCH(0,COUNTIF($V$5:V105,$G$6:$G$206),0)),\"\")","v":""}]
[null,null,null,null,null,null,null,null,null,null,null,null,null,null,null,null,null,null,null,null,null,{"$f":"IFERROR(INDEX($G$6:$G$206,MATCH(0,COUNTIF($V$5:V106,$G$6:$G$206),0)),\"\")","v":""}]
[null,null,null,null,null,null,null,null,null,null,null,null,null,null,null,null,null,null,null,null,null,{"$f":"IFERROR(INDEX($G$6:$G$206,MATCH(0,COUNTIF($V$5:V107,$G$6:$G$206),0)),\"\")","v":""}]
[null,null,null,null,null,null,null,null,null,null,null,null,null,null,null,null,null,null,null,null,null,{"$f":"IFERROR(INDEX($G$6:$G$206,MATCH(0,COUNTIF($V$5:V108,$G$6:$G$206),0)),\"\")","v":""}]
[null,null,null,null,null,null,null,null,null,null,null,null,null,null,null,null,null,null,null,null,null,{"$f":"IFERROR(INDEX($G$6:$G$206,MATCH(0,COUNTIF($V$5:V109,$G$6:$G$206),0)),\"\")","v":""}]
[null,null,null,null,null,null,null,null,null,null,null,null,null,null,null,null,null,null,null,null,null,{"$f":"IFERROR(INDEX($G$6:$G$206,MATCH(0,COUNTIF($V$5:V110,$G$6:$G$206),0)),\"\")","v":""}]
[null,null,null,null,null,null,null,null,null,null,null,null,null,null,null,null,null,null,null,null,null,{"$f":"IFERROR(INDEX($G$6:$G$206,MATCH(0,COUNTIF($V$5:V111,$G$6:$G$206),0)),\"\")","v":""}]
[null,null,null,null,null,null,null,null,null,null,null,null,null,null,null,null,null,null,null,null,null,{"$f":"IFERROR(INDEX($G$6:$G$206,MATCH(0,COUNTIF($V$5:V112,$G$6:$G$206),0)),\"\")","v":""}]
[null,null,null,null,null,null,null,null,null,null,null,null,null,null,null,null,null,null,null,null,null,{"$f":"IFERROR(INDEX($G$6:$G$206,MATCH(0,COUNTIF($V$5:V113,$G$6:$G$206),0)),\"\")","v":""}]
[null,null,null,null,null,null,null,null,null,null,null,null,null,null,null,null,null,null,null,null,null,{"$f":"IFERROR(INDEX($G$6:$G$206,MATCH(0,COUNTIF($V$5:V114,$G$6:$G$206),0)),\"\")","v":""}]
[null,null,null,null,null,null,null,null,null,null,null,null,null,null,null,null,null,null,null,null,null,{"$f":"IFERROR(INDEX($G$6:$G$206,MATCH(0,COUNTIF($V$5:V115,$G$6:$G$206),0)),\"\")","v":""}]
[null,null,null,null,null,null,null,null,null,null,null,null,null,null,null,null,null,null,null,null,null,{"$f":"IFERROR(INDEX($G$6:$G$206,MATCH(0,COUNTIF($V$5:V116,$G$6:$G$206),0)),\"\")","v":""}]
[null,null,null,null,null,null,null,null,null,null,null,null,null,null,null,null,null,null,null,null,null,{"$f":"IFERROR(INDEX($G$6:$G$206,MATCH(0,COUNTIF($V$5:V117,$G$6:$G$206),0)),\"\")","v":""}]
[null,null,null,null,null,null,null,null,null,null,null,null,null,null,null,null,null,null,null,null,null,{"$f":"IFERROR(INDEX($G$6:$G$206,MATCH(0,COUNTIF($V$5:V118,$G$6:$G$206),0)),\"\")","v":""}]
[null,null,null,null,null,null,null,null,null,null,null,null,null,null,null,null,null,null,null,null,null,{"$f":"IFERROR(INDEX($G$6:$G$206,MATCH(0,COUNTIF($V$5:V119,$G$6:$G$206),0)),\"\")","v":""}]
[null,null,null,null,null,null,null,null,null,null,null,null,null,null,null,null,null,null,null,null,null,{"$f":"IFERROR(INDEX($G$6:$G$206,MATCH(0,COUNTIF($V$5:V120,$G$6:$G$206),0)),\"\")","v":""}]
[null,null,null,null,null,null,null,null,null,null,null,null,null,null,null,null,null,null,null,null,null,{"$f":"IFERROR(INDEX($G$6:$G$206,MATCH(0,COUNTIF($V$5:V121,$G$6:$G$206),0)),\"\")","v":""}]
[null,null,null,null,null,null,null,null,null,null,null,null,null,null,null,null,null,null,null,null,null,{"$f":"IFERROR(INDEX($G$6:$G$206,MATCH(0,COUNTIF($V$5:V122,$G$6:$G$206),0)),\"\")","v":""}]
[null,null,null,null,null,null,null,null,null,null,null,null,null,null,null,null,null,null,null,null,null,{"$f":"IFERROR(INDEX($G$6:$G$206,MATCH(0,COUNTIF($V$5:V123,$G$6:$G$206),0)),\"\")","v":""}]
[null,null,null,null,null,null,null,null,null,null,null,null,null,null,null,null,null,null,null,null,null,{"$f":"IFERROR(INDEX($G$6:$G$206,MATCH(0,COUNTIF($V$5:V124,$G$6:$G$206),0)),\"\")","v":""}]
[null,null,null,null,null,null,null,null,null,null,null,null,null,null,null,null,null,null,null,null,null,{"$f":"IFERROR(INDEX($G$6:$G$206,MATCH(0,COUNTIF($V$5:V125,$G$6:$G$206),0)),\"\")","v":""}]
[null,null,null,null,null,null,null,null,null,null,null,null,null,null,null,null,null,null,null,null,null,{"$f":"IFERROR(INDEX($G$6:$G$206,MATCH(0,COUNTIF($V$5:V126,$G$6:$G$206),0)),\"\")","v":""}]
[null,null,null,null,null,null,null,null,null,null,null,null,null,null,null,null,null,null,null,null,null,{"$f":"IFERROR(INDEX($G$6:$G$206,MATCH(0,COUNTIF($V$5:V127,$G$6:$G$206),0)),\"\")","v":""}]
[null,null,null,null,null,null,null,null,null,null,null,null,null,null,null,null,null,null,null,null,null,{"$f":"IFERROR(INDEX($G$6:$G$206,MATCH(0,COUNTIF($V$5:V128,$G$6:$G$206),0)),\"\")","v":""}]
[null,null,null,null,null,null,null,null,null,null,null,null,null,null,null,null,null,null,null,null,null,{"$f":"IFERROR(INDEX($G$6:$G$206,MATCH(0,COUNTIF($V$5:V129,$G$6:$G$206),0)),\"\")","v":""}]
[null,null,null,null,null,null,null,null,null,null,null,null,null,null,null,null,null,null,null,null,null,{"$f":"IFERROR(INDEX($G$6:$G$206,MATCH(0,COUNTIF($V$5:V130,$G$6:$G$206),0)),\"\")","v":""}]
[null,null,null,null,null,null,null,null,null,null,null,null,null,null,null,null,null,null,null,null,null,{"$f":"IFERROR(INDEX($G$6:$G$206,MATCH(0,COUNTIF($V$5:V131,$G$6:$G$206),0)),\"\")","v":""}]
[null,null,null,null,null,null,null,null,null,null,null,null,null,null,null,null,null,null,null,null,null,{"$f":"IFERROR(INDEX($G$6:$G$206,MATCH(0,COUNTIF($V$5:V132,$G$6:$G$206),0)),\"\")","v":""}]
[null,null,null,null,null,null,null,null,null,null,null,null,null,null,null,null,null,null,null,null,null,{"$f":"IFERROR(INDEX($G$6:$G$206,MATCH(0,COUNTIF($V$5:V133,$G$6:$G$206),0)),\"\")","v":""}]
[null,null,null,null,null,null,null,null,null,null,null,null,null,null,null,null,null,null,null,null,null,{"$f":"IFERROR(INDEX($G$6:$G$206,MATCH(0,COUNTIF($V$5:V134,$G$6:$G$206),0)),\"\")","v":""}]
[null,null,null,null,null,null,null,null,null,null,null,null,null,null,null,null,null,null,null,null,null,{"$f":"IFERROR(INDEX($G$6:$G$206,MATCH(0,COUNTIF($V$5:V135,$G$6:$G$206),0)),\"\")","v":""}]
[null,null,null,null,null,null,null,null,null,null,null,null,null,null,null,null,null,null,null,null,null,{"$f":"IFERROR(INDEX($G$6:$G$206,MATCH(0,COUNTIF($V$5:V136,$G$6:$G$206),0)),\"\")","v":""}]
[null,null,null,null,null,null,null,null,null,null,null,null,null,null,null,null,null,null,null,null,null,{"$f":"IFERROR(INDEX($G$6:$G$206,MATCH(0,COUNTIF($V$5:V137,$G$6:$G$206),0)),\"\")","v":""}]
[null,null,null,null,null,null,null,null,null,null,null,null,null,null,null,null,null,null,null,null,null,{"$f":"IFERROR(INDEX($G$6:$G$206,MATCH(0,COUNTIF($V$5:V138,$G$6:$G$206),0)),\"\")","v":""}]
[null,null,null,null,null,null,null,null,null,null,null,null,null,null,null,null,null,null,null,null,null,{"$f":"IFERROR(INDEX($G$6:$G$206,MATCH(0,COUNTIF($V$5:V139,$G$6:$G$206),0)),\"\")","v":""}]
[null,null,null,null,null,null,null,null,null,null,null,null,null,null,null,null,null,null,null,null,null,{"$f":"IFERROR(INDEX($G$6:$G$206,MATCH(0,COUNTIF($V$5:V140,$G$6:$G$206),0)),\"\")","v":""}]
[null,null,null,null,null,null,null,null,null,null,null,null,null,null,null,null,null,null,null,null,null,{"$f":"IFERROR(INDEX($G$6:$G$206,MATCH(0,COUNTIF($V$5:V141,$G$6:$G$206),0)),\"\")","v":""}]
[null,null,null,null,null,null,null,null,null,null,null,null,null,null,null,null,null,null,null,null,null,{"$f":"IFERROR(INDEX($G$6:$G$206,MATCH(0,COUNTIF($V$5:V142,$G$6:$G$206),0)),\"\")","v":""}]
[null,null,null,null,null,null,null,null,null,null,null,null,null,null,null,null,null,null,null,null,null,{"$f":"IFERROR(INDEX($G$6:$G$206,MATCH(0,COUNTIF($V$5:V143,$G$6:$G$206),0)),\"\")","v":""}]
[null,null,null,null,null,null,null,null,null,null,null,null,null,null,null,null,null,null,null,null,null,{"$f":"IFERROR(INDEX($G$6:$G$206,MATCH(0,COUNTIF($V$5:V144,$G$6:$G$206),0)),\"\")","v":""}]
[null,null,null,null,null,null,null,null,null,null,null,null,null,null,null,null,null,null,null,null,null,{"$f":"IFERROR(INDEX($G$6:$G$206,MATCH(0,COUNTIF($V$5:V145,$G$6:$G$206),0)),\"\")","v":""}]
[null,null,null,null,null,null,null,null,null,null,null,null,null,null,null,null,null,null,null,null,null,{"$f":"IFERROR(INDEX($G$6:$G$206,MATCH(0,COUNTIF($V$5:V146,$G$6:$G$206),0)),\"\")","v":""}]
[null,null,null,null,null,null,null,null,null,null,null,null,null,null,null,null,null,null,null,null,null,{"$f":"IFERROR(INDEX($G$6:$G$206,MATCH(0,COUNTIF($V$5:V147,$G$6:$G$206),0)),\"\")","v":""}]
[null,null,null,null,null,null,null,null,null,null,null,null,null,null,null,null,null,null,null,null,null,{"$f":"IFERROR(INDEX($G$6:$G$206,MATCH(0,COUNTIF($V$5:V148,$G$6:$G$206),0)),\"\")","v":""}]
[null,null,null,null,null,null,null,null,null,null,null,null,null,null,null,null,null,null,null,null,null,{"$f":"IFERROR(INDEX($G$6:$G$206,MATCH(0,COUNTIF($V$5:V149,$G$6:$G$206),0)),\"\")","v":""}]
[null,null,null,null,null,null,null,null,null,null,null,null,null,null,null,null,null,null,null,null,null,{"$f":"IFERROR(INDEX($G$6:$G$206,MATCH(0,COUNTIF($V$5:V150,$G$6:$G$206),0)),\"\")","v":""}]
[null,null,null,null,null,null,null,null,null,null,null,null,null,null,null,null,null,null,null,null,null,{"$f":"IFERROR(INDEX($G$6:$G$206,MATCH(0,COUNTIF($V$5:V151,$G$6:$G$206),0)),\"\")","v":""}]
[null,null,null,null,null,null,null,null,null,null,null,null,null,null,null,null,null,null,null,null,null,{"$f":"IFERROR(INDEX($G$6:$G$206,MATCH(0,COUNTIF($V$5:V152,$G$6:$G$206),0)),\"\")","v":""}]
[null,null,null,null,null,null,null,null,null,null,null,null,null,null,null,null,null,null,null,null,null,{"$f":"IFERROR(INDEX($G$6:$G$206,MATCH(0,COUNTIF($V$5:V153,$G$6:$G$206),0)),\"\")","v":""}]
[null,null,null,null,null,null,null,null,null,null,null,null,null,null,null,null,null,null,null,null,null,{"$f":"IFERROR(INDEX($G$6:$G$206,MATCH(0,COUNTIF($V$5:V154,$G$6:$G$206),0)),\"\")","v":""}]
[null,null,null,null,null,null,null,null,null,null,null,null,null,null,null,null,null,null,null,null,null,{"$f":"IFERROR(INDEX($G$6:$G$206,MATCH(0,COUNTIF($V$5:V155,$G$6:$G$206),0)),\"\")","v":""}]
[null,null,null,null,null,null,null,null,null,null,null,null,null,null,null,null,null,null,null,null,null,{"$f":"IFERROR(INDEX($G$6:$G$206,MATCH(0,COUNTIF($V$5:V156,$G$6:$G$206),0)),\"\")","v":""}]
[null,null,null,null,null,null,null,null,null,null,null,null,null,null,null,null,null,null,null,null,null,{"$f":"IFERROR(INDEX($G$6:$G$206,MATCH(0,COUNTIF($V$5:V157,$G$6:$G$206),0)),\"\")","v":""}]
[null,null,null,null,null,null,null,null,null,null,null,null,null,null,null,null,null,null,null,null,null,{"$f":"IFERROR(INDEX($G$6:$G$206,MATCH(0,COUNTIF($V$5:V158,$G$6:$G$206),0)),\"\")","v":""}]
[null,null,null,null,null,null,null,null,null,null,null,null,null,null,null,null,null,null,null,null,null,{"$f":"IFERROR(INDEX($G$6:$G$206,MATCH(0,COUNTIF($V$5:V159,$G$6:$G$206),0)),\"\")","v":""}]
[null,null,null,null,null,null,null,null,null,null,null,null,null,null,null,null,null,null,null,null,null,{"$f":"IFERROR(INDEX($G$6:$G$206,MATCH(0,COUNTIF($V$5:V160,$G$6:$G$206),0)),\"\")","v":""}]
[null,null,null,null,null,null,null,null,null,null,null,null,null,null,null,null,null,null,null,null,null,{"$f":"IFERROR(INDEX($G$6:$G$206,MATCH(0,COUNTIF($V$5:V161,$G$6:$G$206),0)),\"\")","v":""}]
[null,null,null,null,null,null,null,null,null,null,null,null,null,null,null,null,null,null,null,null,null,{"$f":"IFERROR(INDEX($G$6:$G$206,MATCH(0,COUNTIF($V$5:V162,$G$6:$G$206),0)),\"\")","v":""}]
[null,null,null,null,null,null,null,null,null,null,null,null,null,null,null,null,null,null,null,null,null,{"$f":"IFERROR(INDEX($G$6:$G$206,MATCH(0,COUNTIF($V$5:V163,$G$6:$G$206),0)),\"\")","v":""}]
[null,null,null,null,null,null,null,null,null,null,null,null,null,null,null,null,null,null,null,null,null,{"$f":"IFERROR(INDEX($G$6:$G$206,MATCH(0,COUNTIF($V$5:V164,$G$6:$G$206),0)),\"\")","v":""}]
[null,null,null,null,null,null,null,null,null,null,null,null,null,null,null,null,null,null,null,null,null,{"$f":"IFERROR(INDEX($G$6:$G$206,MATCH(0,COUNTIF($V$5:V165,$G$6:$G$206),0)),\"\")","v":""}]
[null,null,null,null,null,null,null,null,null,null,null,null,null,null,null,null,null,null,null,null,null,{"$f":"IFERROR(INDEX($G$6:$G$206,MATCH(0,COUNTIF($V$5:V166,$G$6:$G$206),0)),\"\")","v":""}]
[null,null,null,null,null,null,null,null,null,null,null,null,null,null,null,null,null,null,null,null,null,{"$f":"IFERROR(INDEX($G$6:$G$206,MATCH(0,COUNTIF($V$5:V167,$G$6:$G$206),0)),\"\")","v":""}]
[null,null,null,null,null,null,null,null,null,null,null,null,null,null,null,null,null,null,null,null,null,{"$f":"IFERROR(INDEX($G$6:$G$206,MATCH(0,COUNTIF($V$5:V168,$G$6:$G$206),0)),\"\")","v":""}]
[null,null,null,null,null,null,null,null,null,null,null,null,null,null,null,null,null,null,null,null,null,{"$f":"IFERROR(INDEX($G$6:$G$206,MATCH(0,COUNTIF($V$5:V169,$G$6:$G$206),0)),\"\")","v":""}]
[null,null,null,null,null,null,null,null,null,null,null,null,null,null,null,null,null,null,null,null,null,{"$f":"IFERROR(INDEX($G$6:$G$206,MATCH(0,COUNTIF($V$5:V170,$G$6:$G$206),0)),\"\")","v":""}]
[null,null,null,null,null,null,null,null,null,null,null,null,null,null,null,null,null,null,null,null,null,{"$f":"IFERROR(INDEX($G$6:$G$206,MATCH(0,COUNTIF($V$5:V171,$G$6:$G$206),0)),\"\")","v":""}]
[null,null,null,null,null,null,null,null,null,null,null,null,null,null,null,null,null,null,null,null,null,{"$f":"IFERROR(INDEX($G$6:$G$206,MATCH(0,COUNTIF($V$5:V172,$G$6:$G$206),0)),\"\")","v":""}]
[null,null,null,null,null,null,null,null,null,null,null,null,null,null,null,null,null,null,null,null,null,{"$f":"IFERROR(INDEX($G$6:$G$206,MATCH(0,COUNTIF($V$5:V173,$G$6:$G$206),0)),\"\")","v":""}]
[null,null,null,null,null,null,null,null,null,null,null,null,null,null,null,null,null,null,null,null,null,{"$f":"IFERROR(INDEX($G$6:$G$206,MATCH(0,COUNTIF($V$5:V174,$G$6:$G$206),0)),\"\")","v":""}]
[null,null,null,null,null,null,null,null,null,null,null,null,null,null,null,null,null,null,null,null,null,{"$f":"IFERROR(INDEX($G$6:$G$206,MATCH(0,COUNTIF($V$5:V175,$G$6:$G$206),0)),\"\")","v":""}]
[null,null,null,null,null,null,null,null,null,null,null,null,null,null,null,null,null,null,null,null,null,{"$f":"IFERROR(INDEX($G$6:$G$206,MATCH(0,COUNTIF($V$5:V176,$G$6:$G$206),0)),\"\")","v":""}]
[null,null,null,null,null,null,null,null,null,null,null,null,null,null,null,null,null,null,null,null,null,{"$f":"IFERROR(INDEX($G$6:$G$206,MATCH(0,COUNTIF($V$5:V177,$G$6:$G$206),0)),\"\")","v":""}]
[null,null,null,null,null,null,null,null,null,null,null,null,null,null,null,null,null,null,null,null,null,{"$f":"IFERROR(INDEX($G$6:$G$206,MATCH(0,COUNTIF($V$5:V178,$G$6:$G$206),0)),\"\")","v":""}]
[null,null,null,null,null,null,null,null,null,null,null,null,null,null,null,null,null,null,null,null,null,{"$f":"IFERROR(INDEX($G$6:$G$206,MATCH(0,COUNTIF($V$5:V179,$G$6:$G$206),0)),\"\")","v":""}]
[null,null,null,null,null,null,null,null,null,null,null,null,null,null,null,null,null,null,null,null,null,{"$f":"IFERROR(INDEX($G$6:$G$206,MATCH(0,COUNTIF($V$5:V180,$G$6:$G$206),0)),\"\")","v":""}]
[null,null,null,null,null,null,null,null,null,null,null,null,null,null,null,null,null,null,null,null,null,{"$f":"IFERROR(INDEX($G$6:$G$206,MATCH(0,COUNTIF($V$5:V181,$G$6:$G$206),0)),\"\")","v":""}]
[null,null,null,null,null,null,null,null,null,null,null,null,null,null,null,null,null,null,null,null,null,{"$f":"IFERROR(INDEX($G$6:$G$206,MATCH(0,COUNTIF($V$5:V182,$G$6:$G$206),0)),\"\")","v":""}]
[null,null,null,null,null,null,null,null,null,null,null,null,null,null,null,null,null,null,null,null,null,{"$f":"IFERROR(INDEX($G$6:$G$206,MATCH(0,COUNTIF($V$5:V183,$G$6:$G$206),0)),\"\")","v":""}]
[null,null,null,null,null,null,null,null,null,null,null,null,null,null,null,null,null,null,null,null,null,{"$f":"IFERROR(INDEX($G$6:$G$206,MATCH(0,COUNTIF($V$5:V184,$G$6:$G$206),0)),\"\")","v":""}]
[null,null,null,null,null,null,null,null,null,null,null,null,null,null,null,null,null,null,null,null,null,{"$f":"IFERROR(INDEX($G$6:$G$206,MATCH(0,COUNTIF($V$5:V185,$G$6:$G$206),0)),\"\")","v":""}]
[null,null,null,null,null,null,null,null,null,null,null,null,null,null,null,null,null,null,null,null,null,{"$f":"IFERROR(INDEX($G$6:$G$206,MATCH(0,COUNTIF($V$5:V186,$G$6:$G$206),0)),\"\")","v":""}]
[null,null,null,null,null,null,null,null,null,null,null,null,null,null,null,null,null,null,null,null,null,{"$f":"IFERROR(INDEX($G$6:$G$206,MATCH(0,COUNTIF($V$5:V187,$G$6:$G$206),0)),\"\")","v":""}]
[null,null,null,null,null,null,null,null,null,null,null,null,null,null,null,null,null,null,null,null,null,{"$f":"IFERROR(INDEX($G$6:$G$206,MATCH(0,COUNTIF($V$5:V188,$G$6:$G$206),0)),\"\")","v":""}]

{"sheet":"القائمة_الرئيسية","index":7,"n_rows":97,"n_cols":9,"rows_kept":97,"cut":false,"hidden":false,"merged":[]}
[]
[]
[]
[]
[null,"م"," رقم اللاعب  ","  اسم اللاعب ","ناريخ الميلاد","سنة الميلاد","رقم الهوية","الصفة","Name"]
[null,1,362716,"لاعب 1","2004-05-06",2004,1124684836,"لاعب","player 1"]
[null,2,359189,"لاعب 2","2004-04-15",2004,1124334101,"لاعب","player 2"]
[null,3,366800,"لاعب 3","2005-12-17",2005,1131971291,"لاعب","player 3"]
[null,4,359251,"لاعب 4","2005-10-25",2005,1131298273,"لاعب","player 4"]
[null,5,366545,"لاعب 5","2005-02-28",2005,1128446240,"لاعب","player 5"]
[null,6,343442,"لاعب 6","2004-03-22",2004,1124084805,"لاعب","player 6"]
[null,7,350906,"لاعب 7","2004-04-12",2004,1124301993,"لاعب","player 7"]
[null,8,358586,"لاعب 8","2005-10-15",2005,1131686311,"لاعب","player 8"]
[null,9,359255,"لاعب 9","2004-10-03",2004,1126470168,"لاعب","player 9"]
[null,10,358401,"لاعب 10","2005-02-24",2005,1128285846,"لاعب","player 10"]
[null,11,352264,"لاعب 11","2004-08-09",2004,1125798676,"لاعب","player 11"]
[null,12,362715,"لاعب 12","2004-08-14",2004,1128287776,"لاعب","player 12"]
[null,13,366624,"لاعب 13","2005-10-20",2005,1131215566,"لاعب","player 13"]
[null,14,366904,"لاعب 14","2005-10-13",2005,1131826412,"لاعب","player 14"]
[null,15,344708,"لاعب 15","2004-04-08",2004,1124244011,"لاعب","player 15"]
[null,16,371463,"لاعب 16","2004-11-04",2004,1126880655,"لاعب","player 16"]
[null,17,374554,"لاعب 17","2005-05-23",2005,1129564041,"لاعب","player 17"]
[null,18,358448,"لاعب 18","2005-01-23",2005,1127673042,"لاعب","player 18"]
[null,19,375034,"لاعب 19","2004-03-27",2004,1124150374,"لاعب","player 19"]
[null,20,330936,"لاعب 20","2004-03-29",2004,1124300961,"لاعب","player 20"]
[null,21,362712,"لاعب 21","2004-07-01",2004,1142915635,"لاعب","player 21"]
[null,22,374555,"لاعب 22","2005-03-05",2005,1128516331,"لاعب","player 22"]
[null,23,343773,"لاعب 23","2005-06-15",2005,1129782825,"لاعب","player 23"]
[null,24,375065,"لاعب 24","2005-09-23",2005,1130880436,"لاعب","player 24"]
[null,25,364821,"لاعب 25","2005-11-27",2005,1131559138,"لاعب","player 25"]
[null,26,370197,"لاعب 26","2004-05-02",2004,1126479375,"لاعب"]
[null,27,375683,"لاعب 27","2005-08-16",2005,1130469008,"لاعب","AbdulHadi Ayman AlToraifi"]
[null,28,377221,"لاعب 28","2004-03-29",2004,1124150390,"لاعب","Ali Hassan AlZara"]
[null,29,375024,"لاعب 29","2005-06-26",2005,1129869879,"لاعب","Ali Daowd AlDaowd"]
[null,30,366908,"لاعب 30","2005-12-26",2005,1132428390,"لاعب"]
[null,31,290959,"لاعب 31","2004-01-31",2004,1123567750,"لاعب","Ali AbdulRaaouf AbdRabalnabi"]
[null,32,374552,"لاعب 32","2005-06-12",2005,1129703680,"لاعب","Ali Nasser AlEssa"]
[null,33,369729,"لاعب 33","2005-03-19",2005,1128655972,"لاعب","Fahad Mohammed Alheffah"]
[null,34,366793,"لاعب 34","2005-10-02",2005,1132136290,"لاعب"]
[null,35,362691,"لاعب 35","2004-06-14",2004,1125069128,"لاعب","Qosai Ibrahim BuKodhar"]
[null,36,343070,"لاعب 36","2004-06-23",2004,1125146447,"لاعب","Kadhim Hani AlAsfoor"]
[null,37,371926,"لاعب 37","2004-06-16",2004,1125148971,"لاعب","Mujtaba Ibrahim AlSalman"]
[null,38,358455,"لاعب 38","2004-07-21",2004,1125590131,"لاعب","Mujtaba Mohammed Al Talaq"]
[null,39,359827,"لاعب 39","2004-02-14",2004,1123671073,"لاعب","Mohammed Hassan AlKhalifa"]
[null,40,362694,"لاعب 40","2004-08-13",2004,1125899250,"لاعب","Mohammed Hussain AlMonayyan"]
[null,41,364474,"لاعب 41","2005-07-06",2005,1131363150,"لاعب","Mohammed Zohair AbuHussain"]
[null,42,358246,"لاعب 42","2004-04-18",2004,1124406974,"لاعب","Mohammed Saleh AlMonayyan"]
[null,43,366912,"لاعب 43","2005-10-29",2005,1131238907,"لاعب"]
[null,44,359185,"لاعب 44","2004-09-21",2004,1126565322,"لاعب"]
[null,45,367726,"لاعب 45","2005-07-24",2005,1130275249,"لاعب"]
[null,46,374553,"لاعب 46","2005-04-17",2005,1129041685,"لاعب","Mohammed Noor AlGhanim"]
[null,47,361632,"لاعب 47","2005-05-06",2005,1129311708,"لاعب"]
[null,48,358561,"لاعب 48","2004-12-03",2004,1127108668,"لاعب","Muneer Ibrahim AlMunayyan"]
[null,49,375039,"لاعب 49","2004-03-27",2004,1124353044,"لاعب","Mohannad Hussain AlKhalifah"]
[null,50,359187,"لاعب 50","2004-06-10",2004,1125015741,"لاعب","Yousif Zaki AlKhardawi"]
[null,51,318204,"لاعب 51","2004-08-20",2004,1126539251,"لاعب"]
[null,52,378657,"لاعب 52","2006-05-26",2006,1134251188,"لاعب","Ahmed Hussain Bin Saleh"]
[null,53,366770,"لاعب 53","2006-03-14",2006,1133646941,"لاعب","Ahmed Ali  AlYahya "]
[null,54,371200,"لاعب 54","2007-05-14",2007,1138256639,"لاعب","Bader Muneer AlKhatam"]
[null,55,290325,"لاعب 55","2006-03-18",2006,1133247625,"لاعب","Hassan Ibrahim Moheef"]
[null,56,371199,"لاعب 56","2008-01-18",2008,1141439354,"لاعب","Hussain Hani Shakhoor"]
[null,57,375020,"لاعب 57","2007-05-05",2007,1138611163,"لاعب","Hussain Hani AlSaihati"]
[null,58,360805,"لاعب 58","2008-01-02",2008,1140721612,"لاعب","Hussain Hilal AlHakeem"]
[null,59,366548,"لاعب 59","2007-06-21",2007,1138730088,"لاعب","Khalid Mohammed Khamees"]
[null,60,358588,"لاعب 60","2006-02-02",2006,1132707967,"لاعب","Redha Shaker AlHomaid"]
[null,61,372096,"لاعب 61","2007-06-23",2007,1138777550,"لاعب","Redha Hani AlZainAldeen"]
[null,62,371191,"لاعب 62","2007-10-13",2007,1141180966,"لاعب","Sajjad Ali AlZainAldeen"]
[null,63,359182,"لاعب 63","2006-09-23",2006,1135794038,"لاعب","Dhia Mortadha AlTaha"]
[null,64,359825,"لاعب 64","2006-10-20",2006,1136222856,"لاعب","AbdulAziz Mustfa AlKhalifah"]
[null,65,375044,"لاعب 65","2007-12-26",2007,1140671346,"لاعب","AbdulAziz Moayyad AlHashim"]
[null,66,369735,"لاعب 66","2006-09-12",2006,1135880472,"لاعب","Abdullah Turki AlZainAldeen"]
[null,67,374594,"لاعب 67","2006-02-16",2006,null,"لاعب","Abdullah Fouad Adgham"]
[null,68,377210,"لاعب 68","2006-03-21",2006,1133347441,"لاعب","Abdullah Mohammed AlSaihati"]
[null,69,375685,"لاعب 69","2006-10-28",2006,1136087937,"لاعب","Ali Atheer AlSadah"]
[null,70,370568,"لاعب 70","2006-06-18",2006,1134653870,"لاعب","Ali Ahmed AlMejhed"]
[null,71,367728,"لاعب 71","2006-08-20",2006,1135371308,"لاعب","Ali Jassim AlKhamees"]
[null,72,371202,"لاعب 72","2008-01-05",2008,1140818319,"لاعب","Ali Jaafar AlMahfoudh"]
[null,73,371153,"لاعب 73","2008-01-14",2008,1141056448,"لاعب","Ali Hassan AlMaskeen"]
[null,74,375995,"لاعب 74","2007-02-26",2007,1137416101,"لاعب","Ali Hussain Albouri"]
[null,75,359710,"لاعب 75","2008-10-13",2008,1144179189,"لاعب","Ali Hussain AlHajji"]
[null,76,375787,"لاعب 76","2006-03-16",2006,1133246130,"لاعب","Ali Mohammed AlNefaili"]
[null,77,371155,"لاعب 77","2007-03-25",2007,1137719611,"لاعب","Ali Mohammed AlGhanim"]
[null,78,364822,"لاعب 78","2006-12-16",2006,1136711304,"لاعب","Ali Yousif AlYousif"]
[null,79,339607,"لاعب 79","2008-03-10",2008,1141629863,"لاعب","Qosai Moahmmed AlBusaleh"]
[null,80,366911,"لاعب 80","2006-06-02",2006,1134225299,"لاعب","Mohammed Ahmed Alaraddi"]
[null,81,366774,"لاعب 81","2006-04-26",2006,1133737526,"لاعب","Mohammed Hussain Al Talaq"]
[null,82,364473,"لاعب 82","2006-07-13",2006,1134831898,"لاعب","Mohammed Ramzi AlHodar"]
[null,83,367707,"لاعب 83","2006-08-11",2006,1135393476,"لاعب","Mohammed Ali AlSebaa"]
[null,84,375997,"لاعب 84","2007-02-12",2007,1137288013,"لاعب","Moahmmed Ali Mahfoodh"]
[null,85,375911,"لاعب 85","2006-08-14",2006,1135325825,"لاعب","Moahmmed Qassim AlHeloo"]
[null,86,371192,"لاعب 86","2007-05-13",2007,1138311277,"لاعب","Murtadha Nasse AlAbbas"]
[null,87,364820,"لاعب 87","2006-03-06",2006,1133112209,"لاعب","Nawaf Fathi AlMatrood"]
[null,88,366755,"لاعب 88","2006-10-28",2006,1136973770,"لاعب","Hadi Hani AlDarweesh "]
[null,89,375714,"لاعب 89","2007-02-05",2007,1137439210,"لاعب","Yazan Shubbar AlAwami"]
[null,null,null,"لاعب 90","1968-02-03",null,1006021545,"مدرب","Abdulkarim Hassan Al Talaq"]
[null,null,null,"لاعب 91","1974-03-25",null,1031444670,"إداري","Sadiq Abdulmohsen AlAbdullah"]
[null,null,null,"لاعب 92","1983-05-04",null,1003721782,"مساعد مدرب","Falah Abdullah AlSaihati"]